Workbook

Sheet Instructions
B1: INSTRUCTIONS:
B2: 1. Type a company ticker symbol in the cell with a blue background and press the Enter key. | M2: Click here to return to the Analysis page
B3: There is a considerable amount of data to be downloaded to complete the analysis.
B4: All data will be inserted in the appropriate cells--provided you are logged on to the Internet. If using a dial-up modem, be patient. The update may take 15 to 20 seconds. New data will be written over the old data. There is no need to delete existing data. No password is required to use this tool. If you are asked for a password you are attempting to enter data into a cell that cannot be changed. The ticker symbol is the only data entry needed to use the spreadsheet.
I6: If data does not update after entering a ticker symbol and pressing the Enter key, look above the top of the spreadsheet for a "Security Warning", shown here. Click the Options box--a drop down menu will appear. Click the "Enable this content" radio button, then OK. These steps will be required each time the spreadsheet is opened. It is possible to eliminate this step by authorizing all external data to be accessed but is not recommended as it opens your computer to the possibility of receiving destructive data.
B7: If data are incomplete or you receive an error message of any type when using the form, please check my website for an updated spreadsheet. This tool relies on websites that are open and offer free data. They change their site on occasion, causing the automatic download of data feature to stop working. I normally correct the problem within a few days of becoming aware. If you notice strange behavior please email me: bob.at.seattle@gmail.com
B9: HOW TO USE THIS TOOL: The data presented within this tool is comprehensive and can be overwhelming. Therefore, I suggest using only portions of the information until you become more experienced with what the various data show. The most simple approach is to read the "Bullish Results" and "Bearish Results" in those two boxes. That verbiage will steer you to additional comments and numerical analysis at the left of the form--when you want to dive in deeper. To the right of the remarks is a column containing numbers. The numbers refer to line numbers, found on the extreme left which identify data the remarks are referring to. Don't feel it's necessary to analyze all the data in this spreadsheet to aid in making decisions about a company. Use the information that makes sense to you in each learning stage, taking more and more advantage of additional data as your learning experience expands. The final step in using the data presented on this form are the graphs, accessed by clicking the small purple boxes adjacent to selected information. (They are also available as tabs at the bottom of the spreadsheet.) Verbiage explains what to look for on each graph. Notice there are five year data as well as five quarter graphs--providing a display of long and short term information.
B10: The automatic data feature requires being logged on to the Internet when the spreadsheet is opened, and only works with Excel 2000 or newer. If you are using Excel 2007 or newer you must download the file that's to be used with the version of Excel you are using. Note that there are two versions of the spreadsheet on my site. As explained on my website Excel 2010 contains a bug which precludes the use of this tool.
B12: You can't damage the spreadsheet, so have fun.
B13: (The form is protected and does not allow the user to make changes to formulas, etc.. Therefore, as a user, you cannot make changes that will harm the form, or make it inoperative.)
B14: Note the color legend located on the lower left of the form. Much of the verbiage and many cells will display these colors, depending upon the results of the analysis. This form is somewhat the same as using the SSG. You'll find some items indicating a positive direction, and others not. Use these results as a help in guiding your decision. It does not provide absolute answers. There is no form, or method, that provides "yes" or "no" answers when dealing with the stock market.
B15: SOME SUGGESTIONS IN USING THE TOOL: (It's a little intiminating at first glance.)
B16: I suggest analyzing the data in layers. You might start with observing the Bullish and Bearish remarks. Even a cursory glance tells you a lot. If there are many more Bullish remarks, that's probably good. The opposite is probably bad. Use the "Numerical Result of this Analysis" number only when comparing companies in the same industry. Note: competitors are listed at the bottom of the sheet so a comparison is easily done. Just type in the ticker symbol. Another easy to use factor is determining the Intrinsic Value that Warren Buffett uses--he has no interest unless the discount rate is 25% or more. Click the link, enter the ticker and read the result. The result can be entered on the form if you wish.
B17: Note the yellow "SEE"column of numbers to the right of the Bullish and Bearish remarks. If you'd like to know more about what drives the remark seen, locate the same number in the yellow collumn at the far left. To the left of the Bullish and Bearish boxes are small purple boxes. Click on one and see 5 year and 5 quarter charted data associated with the location of the purple box. Verbiage with each graph explains what to look for. That should be enough to get you started. Investigate and enjoy.
B19: Use the verbiage and the numerical result only as a guide in analyzing the company and as a comparison to companies in the same intistry.
B20: Some Background on this form:
B21: The form was derived after reading what various authors recommended looking at when studying the Annual Report. The authors I used are Peter Lynch, Warren Buffett, Benjamin Graham, and the NAIC Guide. Therefore, the items studied in this form represent the same items recommended by these authors as study tools.
B24: This form is offered without warranty. If strange behavior is observed please contact me -- bob.at.seattle@gmail.com
B25: Thanks.
B27: NOTE: This analysis tool is designed for Retail and Manufacturing type industries. If used with other industries the results will be less helpful.
B29: Bob
B31: Click here to return to the Analysis page

Sheet Analysis
B1: ANALYZING THE ANNUAL REPORT | E1: This page shows year over year comparisons--see the graphs for 5 quarter and 5 year comparisons | L1: version 9.34 | N1: =IF(COUNT(rngEarningsStatement)=8," It appears no Refresh is required","Earnings Data are missing--click the ""Refresh Data"" icon") -> It appears no Refresh is required
B2: Type a Ticker Symbol in blue colored cell & press Enter | E2: aapl | F2: =Data!D73 -> Apple Inc | J2: Graphs | X2: =IF(RevenuesThisYear=RevenuesLastYear,"Caution: some data are not being reported correctly","") -> 
C3: The cheaper the paper, the more valuable the information -- Peter Lynch | H3: (Company) | K3: =IF(Data!G15="data missing", "It appears the most recent annual data are missing", "Financial Data from Zacks") -> Financial Data from Zacks | X3: =IF(RevenuesThisYear=RevenuesLastYear,"It appears last year data and this year data are the same","") -> 
C4: =IF(D4="capitalization: SmallCap","(Less than 1 Billion in sales)",IF(D4="capitalization: MidCap","(5 Billion to 10 Billion in sales)",IF(D4="capitalization: largeCap","(Over 10 Billion in sales)"))) -> (Over 10 Billion in sales) | D4: =IF(Data!G40<=1000,"Capitalization: SmallCap",IF(Data!G40>=10000,"Capitalization: LargeCap",IF(Data!G40<500000,"Capitalization: MidCap",""))) -> Capitalization: LargeCap | F4: Fiscal Year End date: | I4: =Data!C17 -> 2017-09-30 | K4: =IF(ISERROR(S75),"",S75) -> 52 | L4: out of | M4: =U75 -> 100 | N4: =IF(T75>693,"CAUTION: DATA ARE MISSING. Close the spreadsheet and open it again.",IF(T75=1,"Caution: One data item is missing",IF(ISERROR(K4),"< #DIV/0 Indicates data are missing","Total Points for this analysis"))) -> Total Points for this analysis
A5: 1 | B5: Accounts Receivable | E5: Change: | F5: =IF(OR(X9<=0,COUNT(X8,X9)<2),0,(X8/X9)-1) -> 0.217550087 | G5: =IF(F5=0,"No Accounts receivable data are reported for this company",IF(F5>0.001,"Oops - Wrong direction (Increasing)",IF(F12<F5,"Right direction, but Sales is declining faster",IF(F5<0,"OK!, Right direction (Decreasing)","")))) -> Oops - Wrong direction (Increasing) | K5: Bullish Results | V5: SEE | X5: Millions | Y5: of dollars - except today's price
C6: Days waiting for payment this year= | D6: =IF(ISNA(ARThisYear),"N/A",IF(OR(X22<=0,COUNT(X8,X22)<2),NA(),X8/(X22/365))) -> 56.80067093 | E6: =IF(COUNT(F5)<1,"",IF(AND(F12>0,F5>0),"Sales and Accounts Receivable are both increasing - If about equal, that's probably ok",IF(F5>0,"Rising Accts. Rec. means customers aren't paying their bills",""))) -> Sales and Accounts Receivable are both increasing - If about equal, that's probably ok | J6: 1 | K6: =IF(F12>F5,"Sales is increasing faster than Accts Receivable",IF(F$5<0,"Accounts Receivable is decreasing","")) ->  | P6: =IF(K6="Sales is increasing faster than Accts Receivable",Q6,0) -> 0 | Q6: 4 | R6: =IF(ISNA(D6),"N/A",IF(D6<45,1,IF(D6<60,1,0))) -> 1 | S6: =IF(T6=99,"",IF(R6>0,R6*3,0)) -> 3 | T6: =IF(ISERROR(R6),99,"") ->  | U6: 4 | V6: =IF(OR(K6="Sales is increasing faster than Accts Receivable",K6="Accounts Receivable is decreasing"),"Line 1","") ->  | Y6: (from Balance Sheet)
C7: Days waiting for payment prior year= | D7: =IF(OR(X23<=0,COUNT(X9,X23)<2),NA(),X9/(X23/365)) -> 49.59276847 | E7: =IF(ISNA(F5),"N/A",IF(AND(F5<0,F9>0),"Accounts Receivable are decreasing but Inventories are increasing - why?",IF(AND(F5>0,F9>0),"Inventories are also increasing - are the increases substantial?",IF(AND(F5<0,F9<0),"Good - Both Accounts Receivable and Inventories are decreasing","If Sales are increasing at a similar rate, good")))) -> Inventories are also increasing - are the increases substantial? | K7: =IF(ISERROR(F9),"",IF(F12>F9,"Sales are growing faster than Inventories",IF(F$9<0,"Inventories are decreasing",""))) ->  | P7: =IF(K7="Sales are growing faster than Inventories",Q7,0) -> 0 | Q7: 4 | R7: =IF(E6="Sales and Accounts Receivable are both increasing - If about equal, that's probably ok",1,0) -> 1 | S7: 3 | T7: =IF(ISERROR(R7),99,"") ->  | U7: 4 | V7: =IF(OR(K7="Sales are growing faster than inventories",K7="Inventories are decreasing"),"Line 2","") ->  | X7: =Data!C19 -> 74181 | Y7: Cash & Cash Equivalents
D8: Below 60 is good - below 45 is superb) | J8: 1a | K8: =IF(F$12>0,"Sales are increasing","") -> Sales are increasing | P8: =IF(K8="Sales are increasing",Q8,0) -> 4 | Q8: 4 | R8: =IF(G9="whoa, wrong direction (increasing)",0,IF(G9="yes! - Right direction (Decreasing)",1)) -> 0 | S8: 0 | T8: =IF(ISERROR(R8),99,"") ->  | U8: 4 | V8: =IF(K8="Sales are increasing","Line 3","") -> Line 3 | X8: =Data!M9 -> 35673 | Y8: Accounts Receivable this year
A9: 2 | B9: Inventories | E9: Change: | F9: =IF(InventoriesThisYear=0,0,IF(OR(X11<=0,COUNT(X10,X11)<2),NA(),(X10/X11)-1)) -> 1.277204503 | G9: =IF(F9=0,"No Inventory data are reported for this company",IF(COUNT(F9)<1,"",IF(F9>0.001,"Whoa, wrong direction (Increasing)",IF(F9<0,"YES! - Right direction (Decreasing)","")))) -> Whoa, wrong direction (Increasing) | K9: =IF(ISERROR(E15),"",IF(F$12>E$15,"Sales are increasing faster than Cost of Sales","")) -> Sales are increasing faster than Cost of Sales | P9: =IF(K9="Sales are increasing faster than Cost of Sales",Q9,0) -> 4 | Q9: 4 | R9: =IF(E10="CAUTION -- Both Accts. Receivable & Inventories are increasing",0,IF(E10="Both Accts Rec. & Inventories are decreasing, that's positive.",1,0)) -> 0 | S9: 0 | U9: 4 | V9: =IF(K9="Sales are increasing faster than Cost of Sales","Line 4","") -> Line 4 | X9: =Data!L9 -> 29299 | Y9: Accounts Receivable prior year
C10: Inventory Turnover Days this year = | D10: =Data!M27 -> 9.443213182 | E10: =IF(COUNT(F9,F5)<2,"",IF(AND(F9>0,F5>0),"CAUTION -- Both Accts. Receivable & Inventories are increasing",IF(AND(F9<0,F5<0),"Both Accts Rec. & Inventories are decreasing, that's positive.",IF(F9>0,"If Sales are flat or decreasing, Caution","")))) -> CAUTION -- Both Accts. Receivable & Inventories are increasing | K10: =IF(ISERROR(F$21),"This company has no long term debt",IF(F$21<0,"Debt is decreasing","")) ->  | P10: =IF(K10="Debt is decreasing",Q10,0) -> 0 | Q10: 4 | R10: =IF(E11="CAUTION -- Both Accts. Receivable & Inventories are increasing",0,IF(E11="Both Accts Rec. & Inventories are decreasing, that's positive.",1,0)) -> 0 | S10: =IF(T10=99,"",IF(R10>0,R10*3,0)) -> 0 | U10: 3 | V10: =IF(K10="Debt is decreasing","Line 6","") ->  | X10: =Data!M11 -> 4855 | Y10: Inventories current year
C11: Compare with other companies in the industry | E11: =IF(COUNT(F9)<1,"",IF(F9>0,"If Inventories are rising faster than sales, competition or pricing are likely the problem","")) -> If Inventories are rising faster than sales, competition or pricing are likely the problem | J11: 2 | K11: =IF(ISERROR(F$27),"",IF(F$27>5,"Interest Coverage is reasonable","")) -> Interest Coverage is reasonable | P11: =IF(K11="Interest Coverage is reasonable",Q11,0) -> 4 | Q11: 4 | R11: =IF(G12="Way to GO! (Increasing)",1,IF(G12="Oh-Oh - Wrong way",0)) -> 1 | S11: =IF(T11=99,"",IF(R11>0,R11*3,0)) -> 3 | U11: 3 | V11: =IF(K11="Interest Coverage is reasonable","Line 8","") -> Line 8 | X11: =Data!L11 -> 2132 | Y11: Inventories prior year
A12: 3 | B12: Sales or Revenues | E12: Change: | F12: =IF(OR(X23<=0,COUNT(X22,X23)<2),NA(),(X22/X23)-1) -> 0.06304518199 | G12: =IF(COUNT(F12)<1,"",IF(F12>0,"Way to GO! (Increasing)","Oh-Oh - Wrong way")) -> Way to GO! (Increasing) | K12: =IF(ISERROR(E30),"",IF(E$30>G$30,"Gross Profit Margin is growing","")) -> Gross Profit Margin is growing | P12: =IF(K12="Gross Profit Margin is growing",Q12,0) -> 4 | Q12: 4 | R12: =IF(E13="Caution - Accts Receivables growing faster than sales",0,IF(E13="OK (Sales growing faster than Accts Receivable)",1,0)) -> 0 | S12: 0 | U12: 3 | V12: =IF(K12="Gross Profit Margin is growing","Line 9","") -> Line 9 | X12: =Data!M13 -> 128645 | Y12: Total Current Assets
C13: Sales to Accts Receivable Ratio. . . . . . . . . . . . . . | E13: =IF(COUNT(F5,F12)<2,"",IF(F5>F12,"Caution - Accts Receivables growing faster than sales","OK (Sales growing faster than Accts Receivable)")) -> Caution - Accts Receivables growing faster than sales | J13: 2a | K13: =IF(F32<0,"Shares outstanding are decreasing","") ->  | P13: =IF(K13="Shares outstanding are decreasing",Q13,0) -> 0 | Q13: 4 | R13: =IF(E14="Caution: Inventories growing faster than sales",0,IF(E14="Sales to Inventories ratio is OK (Sales growing faster than Inventories)",1,0)) -> 0 | S13: 0 | U13: 3 | V13: =IF(K13="Shares outstanding are decreasing","Line 10","") ->  | X13: =Data!G22 -> 16597 | Y13: This Yr. Total Property Plant & Equip.
C14: Sales to Inventories Ratio. . . . . . . . . . . . . . . . . . . | E14: =IF(F9>F12,"Caution: Inventories growing faster than sales","Sales to Inventories ratio is OK (Sales growing faster than Inventories)") -> Caution: Inventories growing faster than sales | K14: =IF(F$34>=F$12,"Cash flow is growing faster than Sales","") ->  | P14: =IF(K14="Cash flow is growing faster than Sales",Q14,0) -> 0 | Q14: 4 | R14: =IF(F15="Caution - Why is it increasing?",-1,IF(F15="Cost of Sales is increasing but so is Sales",1,0)) -> 0 | S14: 0 | U14: 4 | V14: =IF(K14="Cash flow is growing faster than Sales","Line 11","") ->  | X14: =Data!L22 -> 27010 | Y14: Prior Yr. Total Property Plant & Equip.
A15: 4 | B15: Cost of Sales | D15: =IF(COUNT(E15)<1,"",IF(E15<0.01,"Down",IF(E15>0.01,"Up","Even"))) -> Down | E15: =IF(COUNT(X24,X25)<2,NA(),(X24/X25)-1) -> -0.0503483048 | F15: =IF(COUNT(E15)<1,"",IF(E15<0.03,"A small change isn't considered too serious",IF(F12>E15,"Cost of Sales is increasing but so is Sales",IF(E15>0.03,"Caution - Why is it increasing?","")))) -> A small change isn't considered too serious | K15: =IF(F$39>0.1,"Free cash flow growth is excellent","") -> Free cash flow growth is excellent | P15: =IF(K15="Free cash flow growth is excellent",Q15,0) -> 4 | Q15: 4 | R15: =IF(F16="CAUTION - Cost of Sales increasing faster than Sales",-1,IF(F16="Good - Sales increasing faster than Cost of Sales",1,0)) -> 1 | S15: 3 | U15: 4 | V15: =IF(K15="Free cash flow growth is excellent","Line13","") -> Line13 | X15: =Data!M25 -> 100814 | Y15: Total Current Liabilities
B16: [Cost of sales this year/Cost of sales prior year as a % change] | F16: =IF(ISERROR(E15),"Data is missing or not available",IF((X24/X25)>(X22/X23),"CAUTION - Cost of Sales increasing faster than Sales","Good - Sales increasing faster than Cost of Sales")) -> Good - Sales increasing faster than Cost of Sales | K16: =IF(F$41*100>X$35,"Return on Free Cash flow is good","") -> Return on Free Cash flow is good | P16: =IF(K16="Return on Free Cash flow is good",Q16,0) -> 4 | Q16: 4 | R16: =IF(F17="CAUTION - Cost of Sales increasing faster than Sales",-1,IF(F17="Good - Sales increasing faster than Cost of Sales",1,0)) -> -1 | S16: 0 | T16: =IF(ISERROR(R16),99,"") ->  | U16: 4 | V16: =IF(K16="Return on Free Cash flow is good","Line 14","") -> Line 14 | X16: =IF(ISERROR(Data!G29),0,Data!G29) -> 0 | Y16: Long-term Debt this year
K17: =IF(F$48>0.1,"Return on Assets is adequate","") -> Return on Assets is adequate | P17: =IF(K17="Return on Assets is adequate",Q17,0) -> 4 | Q17: 4 | R17: =IF(G18="Caution - The investment in PP&E is flat or decreasing",-1,IF(G18="OK - (Sales should grow as fast)",1,0)) -> -1 | S17: 0 | U17: 3 | V17: =IF(K17="Return on Assets is adequate","Line 17","") -> Line 17 | X17: =IF(ISERROR(Data!F29),0,Data!F29) -> 0 | Y17: Long-term Debt prior year
A18: 5 | B18: Plant & Equipment | E18: Change: | F18: =IF(COUNT(X13,X14)<2,NA(),X13/X14-1) -> -0.38552388 | G18: =IF(COUNT(F18)<1,"",IF(F18>0,"OK - (Sales should grow as fast)","Caution - The investment in PP&E is flat or decreasing")) -> Caution - The investment in PP&E is flat or decreasing | K18: =IF(F$50>0.15,"Return on Equity is adequate","") -> Return on Equity is adequate | P18: =IF(K18="Return on Equity is adequate",Q18,0) -> 4 | Q18: 4 | R18: =IF(F19="Oops - Sales aren't growing as fast",-1,IF(F19="Way to GO! Sales are growing faster",1,0)) -> 1 | S18: 3 | U18: 3 | V18: =IF(K18="Return on Equity is adequate","Line 18","") -> Line 18 | X18: =Data!G32 -> 6359.4 | Y18: Common Shares Outstanding this Yr.
C19: (Sales should be increasing as fast or faster). | F19: =IF(COUNT(F12,F18)<2,"",IF(F12>F18,"Way to GO! Sales are growing faster","Oops - Sales aren't growing as fast")) -> Way to GO! Sales are growing faster | J19: 3 | K19: =IF(ISERROR(Net_Income),"",IF(E$55<F$55,"Net Cash is growing faster than Net Income","")) ->  | P19: =IF(K19="Net Cash is growing faster than Net Income",Q19,0) -> 0 | Q19: 4 | V19: =IF(K19="Net Cash is growing faster than Net Income","Line 20","") ->  | X19: =Data!F32 -> 5864.8 | Y19: Common Shares Outstanding prior Yr.
K20: =IF(E$57>(CurrentPrice*0.1),"Cash Position per Share is worth noting","") ->  | P20: =IF(K20="Cash Position per Share is worth noting",Q20,0) -> 0 | Q20: 4 | R20: =IF(ISERROR(F21),"",IF(LTDebtThisYEar=0,1,IF(G21="Wrong direction (Increasing)",-1,IF(G21="Right direction (Decreasing)",1,0)))) -> 1 | S20: =IF(T20=99,"",IF(R20>0,R20*3,0)) -> 3 | U20: 2 | V20: =IF(K20="Cash Position per Share is worth noting","Line 21","") ->  | X20: =Data!G28 -> 41547 | Y20: Total Stockholders Equity
A21: 6 | B21: Long-term Debt | E21: Change: | F21: =IF(AND(LTDebtThisYEar>0,LTDebtLastYear=0),1,IF(LTDebtThisYEar+LTDebtLastYear>0,X16/X17-1,0)) -> 0 | G21: =IF(ISERROR(LTDebtThisYEar),"Company has no debt or it has not been reported",IF(AND(F21>"0",LTDebtLastYear="0"),"Company has taken on new debt this year",IF(LTDebtThisYEar=0,"No long term debt can be very positive",IF(F21>0.02,"Wrong direction (Increasing)",IF(F21<0,"Right direction (Decreasing)","No substantial change"))))) -> No long term debt can be very positive | K21: =IF(CurrentPrice*0.1*2<D$57,"Cash Position per Share is greater than 20% of the current price","") ->  | P21: =IF(K21="Cash Position per Share is greater than 20% of the current price",Q21,0) -> 0 | Q21: 4 | R21: =IF(ISERROR(F22),"",IF(LTDebtThisYEar=0,1,IF(G22="Wrong direction (Increasing)",-1,IF(G22="Right direction (Decreasing)",1,0)))) -> 1 | S21: =IF(T21=99,"",IF(R21>0,R21*3,0)) -> 3 | T21: =IF(ISERROR(R21),99,"") ->  | U21: 2 | V21: =IF(K21="Cash Position per Share is greater than 20% of the current price","Line 21","") ->  | Y21: (from Statement of Earnings)
G22: =IF(ISERROR(LTDebtThisYEar),"",IF(F21="up","",IF(LTDebtThisYEar<0.001,"",IF(F24>0.25,"Debt to Equity Ratio is High","Debt to Equity Ratio is OK")))) ->  | J22: 3a | K22: =IF(ISERROR(LTDebtThisYEar),"",IF(F$24=0,"No debt can be very positive--particularly in a down economy",IF(F$24<0.26,"Debt to Equity ratio is reasonable",""))) -> No debt can be very positive--particularly in a down economy | P22: =IF(OR(K22)="Debt to Equity ratio is reasonable",K22="No debt can be very positive--particularly in a down economy",Q22) -> TRUE | Q22: 4 | R22: =IF(G22="Debt to Equity Ratio is High",-1,IF(G22="Debt to Equity Ratio is OK",1,1)) -> 1 | S22: =IF(T22=99,"",IF(R22>0,R22*3,0)) -> 3 | U22: 3 | V22: =IF(OR(K22="No debt can be very positive--particularly in a down economy",K22="Debt to Equity ratio is reasonable"),"Line 7","") -> Line 7 | X22: =Data!M39 -> 229234 | Y22: Total Sales or Revenues this Year
G23: =IF(COUNT(F21)<1,"",IF(F21=0,"",IF(F21>0.02,"Why are they taking on more debt? What is the debt to equity ratio?","A small change isn't considered a serious negative."))) ->  | K23: =IF(F37>2,"The dividend payout ratio appears to be sustainable","") -> The dividend payout ratio appears to be sustainable | P23: =IF(K23="The dividend payout ratio appears to be sustainable",Q23,0) -> 4 | Q23: 4 | R23: =IF(ISERROR(F27),1,IF(G22="Debt to Equity Ratio is OK",1,IF(G27="Caution, company may be weak financially.",0))) -> FALSE | S23: =IF(T23=99,"",IF(R23>0,R23*3,0)) -> 0 | U23: 3 | V23: =IF(K23="The dividend payout ratio appears to be sustainable","Line 12","") -> Line 12 | X23: =Data!L39 -> 215639 | Y23: Total Sales or Revenues prior Year
A24: 7 | B24: LT Debt to Equity Ratio: | E24: debt to equity. | F24: =IF(LTDebtThisYEar="--",0,X16/X20) -> 0 | G24: =IF(ISERROR(LTDebtThisYEar),"Company has no debt or it has not been reported",IF(COUNT(F24)<1,"",IF(F24>0.26,"Long-term debt may be excessive",IF(F24=0,"The company has no Long-term Debt","Long-term Debt is in normal range")))) -> The company has no Long-term Debt | K24: =IF(ISERROR(D81),"",IF(D81>H81,"Gross Profit Margin is greater than the industry average","")) ->  | P24: =IF(K24="Gross Profit Margin is greater than the industry average",Q24,0) -> 0 | Q24: 4 | R24: =IF(G24="Long-term Debt is in normal range",1,0) -> 0 | S24: =IF(T24=99,"",IF(R24>0,R24*3,0)) -> 0 | T24: =IF(ISERROR(R24),99,"") ->  | U24: 3 | V24: =IF(K24="Gross Profit Margin is greater than the industry average","Line 30","") ->  | X24: =Data!G60 -> 106606 | Y24: Cost of Sales this Year
C25: [Long-term Debt / Total Equity] | D25: Normal Long-term Debt -- Less than 25%. | G25: =IF(COUNT(F24)<1,"",IF(F24>0.26,"Is the ROE greater than interest rates? Also see Free Cash Flow Ratio","")) ->  | K25: =IF(F$46>E$46,"The growth in Sales is greater than the growth in Assets","") ->  | P25: =IF(K25="The growth in Sales is greater than the growth in Assets",Q25,0) -> 0 | Q25: 4 | V25: =IF(K25="The growth in Sales is greater than the growth in Assets","Line 16","") ->  | X25: =Data!F60 -> 112258 | Y25: Cost of Sales prior Year
Q26: 4 | X26: =Data!G48 -> 50155 | Y26: Income before Taxes
A27: 8 | B27: Total Interest Coverage | D27: Pretax exceeds interest X times | F27: =IF(OR(X29<=0,COUNT(X26,X29)<2),"N/A",(X26+X29)/X29) -> 20.35739097 | G27: =IF(ISERROR(LTDebtThisYEar),"Company has no debt or it has not been reported",IF(F27="n/a","The data source reports no interest was paid on debt this year",IF(TotalInterestPaidonDebt=0,"With no LT debt, this item is Not Applicable",IF(F27>4.99,"Large numbers aren't as useful as small.","")))) -> Large numbers aren't as useful as small. | P27: =IF(K27="Short interest is fairly low and decreasing",Q27,0) -> 4 | Q27: 4 | R27: =IF(F28="Caution, Interest Coverage is VERY worrysome",-3,IF(F28="Caution, Interest Coverage is worrysome",-2,IF(F28="This company appears to be in good shape financially.",1,0))) -> 1 | S27: =IF(T27=99,"",IF(R27>0,R27*3,0)) -> 3 | U27: 3 | X27: =Data!G49 -> 37037 | Y27: This Yr. Net Income
C28: [Pretax Profit + Total Interest Paid / Total Interest Paid] | F28: =IF(COUNT(F27)<1,"",IF(F27>4.99,"This company appears to be in good shape financially.",IF(F27>2.9999,"Caution, Interest Coverage is worrysome","CAUTION, Interest Coverage is VERY worrysome"))) -> This company appears to be in good shape financially. | P28: =COUNT(P6:P27) -> 20 | Q28: =SUM(Q6:Q27) -> 88 | X28: =Data!F49 -> 39510 | Y28: Prior Yr. Net Income
G29: Any number below 5 is worrisome. A number below 3 is very worrisome | K29: Bearish Results | R29: =IF(H30="Caution the Gross Margin is decreasing",0,IF(H30="Good, Gross Profit is increasing",1,0)) -> 1 | S29: =IF(T29=99,"",IF(R29>0,R29*2,0)) -> 2 | U29: 2 | V29: SEE | X29: =IF(ISERROR(Data!G56),0,Data!G56) -> 2591 | Y29: Total Interest Paid on Debt
A30: 9 | B30: Gross Profit Margin | D30: This year= | E30: =ROUND((RevenuesThisYear-CostsThisYear)/RevenuesThisYear,3) -> 0.535 | F30: Prior Year= | G30: =ROUND((RevenuesLastYear-CostsLastYear)/RevenuesLastYear,3) -> 0.479 | H30: =IF(G30>E30,"Caution the Gross Margin is decreasing",IF(G30<E30,"Good, Gross Profit is increasing","")) -> Good, Gross Profit is increasing | J30: 4 | K30: =IF(F$5>0,"Accounts Receivable is increasing","") -> Accounts Receivable is increasing | P30: =IF(K30="Accounts Receivable is increasing",Q30,0) -> -4 | Q30: -4 | V30: =IF(K30="Accounts Receivable is increasing","Line 1","") -> Line 1 | Y30: (from Statement of Cash Flows)
C31: [Sales - Cost of Sales / Sales] | K31: =IF(ISERROR(F9),"",IF(F$9>0,"Inventories are increasing","")) -> Inventories are increasing | P31: =IF(K31="Inventories are increasing",Q31,0) -> -4 | Q31: -4 | R31: =IF(G32="Wrong direction (Increasing)--Dilution is occuring",-1,IF(G32="Right Direction (Decreasing)",1,0)) -> -1 | S31: =IF(T31=99,"",IF(R31>0,R31*3,0)) -> 0 | U31: 3 | V31: =IF(K31="Inventories are increasing","Line 2","") -> Line 2 | X31: =Data!M64 -> 63598 | Y31: This Yr.-Net Cash provided by Operations
A32: 10 | B32: Number of shares outstanding trend: | E32: =IF(F32<1.02,"Down",IF(F32>1.02,"Up","Even")) -> Down | F32: =IF(OR(X19<=0,COUNT(X18,X19)<2),"UP",(X18/X19)-1) -> 0.08433365162 | G32: =IF(F32="UP","Company has not reported common shares last year",IF(F32>0.02,"Wrong direction (Increasing)--Dilution is occuring",IF(F32=0,"No significant change",IF(F32<0,"Right Direction (Decreasing)",IF(F32<=0.02,"A small change is not important"))))) -> Wrong direction (Increasing)--Dilution is occuring | K32: =IF(F$12<0,"Sales are decreasing","") ->  | P32: =IF(K32="Sales are decreasing",Q32,0) -> 0 | Q32: -4 | V32: =IF(K32="Sales are decreasing","Line 3","") ->  | X32: =Data!L64 -> 65824 | Y32: Prior Yr. -Net Cash provided by Operations
C33: [Curr. Yr. Shares/Prior Yr. Shares] | F33: =IF(COUNT(F32)<1,"",IF(F32<0.02,"A small change of up to about 2% isn't considered too consequencial","")) ->  | K33: =IF(F9>F12,"Inventories are growing faster than sales","") -> Inventories are growing faster than sales | P33: =IF(K33="Inventories are growing faster than sales",Q33,0) -> -4 | Q33: -4 | V33: =IF(K33="Inventories are growing faster than sales","Line 3","") -> Line 3 | X33: =Data!M54 -> 12770 | Y33: Dividends
A34: 11 | B34: Operating Cash flow Change | F34: =Data!M52 -> -0.07124479457 | G34: Cash flow should increase at the same rate as Sales - or greater | K34: =IF(ISERROR(E15),"",IF(F$12<E$15,"Cost of Sales is growing faster than Sales","")) ->  | P34: =IF(K34="Cost of Sales is growing faster than Sales",Q34,0) -> 0 | Q34: -4 | R34: =IF(F35="Caution - Cashflow is not increasing at or better than the Sales rate",0,IF(G35="Cashflow is growing faster than Sales",1,0)) -> 0 | S34: =IF(T34=99,"",IF(R34>0,R34*3,0)) -> 0 | U34: 3 | V34: =IF(K34="Cost of Sales is growing faster than Sales","Line 4","") ->  | X34: =Data!E75 -> 190.29 | Y34: Price
B35: (Curr. Yr. PreTax + Depreciation - Taxes / Prior Yr. PreTax + Depreciation - Taxes] | F35: =IF(COUNT(NetCashOperationsThisYear,NetCashOperationsLastYear,RevenuesThisYear,RevenuesLastYear)<4,"",IF(F34>F12,"Cashflow is growing faster than Sales",IF(F34="NMF","This ratio is not meaningful -- Caution is advised","Caution - Cashflow is not increasing at or better than the Sales rate"))) -> Caution - Cashflow is not increasing at or better than the Sales rate | K35: =IF(ISERROR(F$21),"",IF(F$21>0.25,"Long Term Debt is increasing","")) ->  | P35: =IF(K35="Long Term Debt is increasing",Q35,0) -> 0 | Q35: -4 | V35: =IF(K35="Long Term Debt is increasing","Line 6","") ->  | X35: =Data!C118/100 -> 0.0295 | Y35: 10 Year Note rate
K36: =IF(ISERROR(F$27),"",IF(F$27<5,"Caution--Interest Coverage is low or data are missing","")) ->  | P36: =IF(K36="Caution--Interest Coverage is low or data are missing",Q36,0) -> 0 | Q36: -4 | R36: =IF(G37="",0,IF(G37="ratio is probably sufficient--the dividend is not likely to be cut",1,0)) -> 1 | S36: =IF(T36=99,"",IF(R36>0,R36*3,0)) -> 3 | U36: 3 | V36: =IF(K36="Caution--Interest Coverage is low or data are missing","Line 8","") -> 
A37: 12 | B37: Dividend to Cash from Operations ratio | F37: =Data!N57 -> 4.980266249 | G37: =IF(AND(Data!M54=0,SUM(Data!I54:M54)>0),"Company paid a dividend in the past but data for most recent quarter is missing--why?",IF(Data!M54=0,"The company pays no dividend",IF(F37>=2,"Ratio is probably sufficient--the dividend is not likely to be cut",IF(AND(F37>=1,F37<2),"The ratio is low--can the current dividend be continued?",IF(F37<1,"The dividend is in danger of being cut or eliminated",""))))) -> Ratio is probably sufficient--the dividend is not likely to be cut | K37: =IF(ISERROR(E30),"",IF(E$30<G$30,"Gross Profit Margin is not growing","")) ->  | P37: =IF(K37="Gross Profit Margin is not growing",Q37,0) -> 0 | Q37: -4 | V37: =IF(K37="Gross Profit Margin is not growing","Line 9","") -> 
C38: Indicates if there is enough cash flow to cover the dividend | K38: =IF(F39<0.1,"Free cash flow margin should be higher","") ->  | P38: =IF(K38="Free cash flow margin should be higher",Q38,0) -> 0 | Q38: -4 | R38: =IF(G39="OOPS, anything less than 10 is bad news",0,IF(G39="Anything over 10 is Great - Substantially over 10 is EXCELLENT",1,0)) -> 1 | S38: =IF(T38=99,"",IF(R38>0,R38*3,0)) -> 3 | U38: 3 | V38: =IF(K38="Free cash flow margin should be higher","Line 13","") -> 
A39: 13 | B39: Free Cash Flow Margin | F39: =Data!N60 -> 0.2774370294 | G39: =IF(COUNT(F39)<1,"",IF(F39<0.098,"OOPS, anything less than 10 is bad news","Anything over 10 is Great - Substantially over 10 is EXCELLENT")) -> Anything over 10 is Great - Substantially over 10 is EXCELLENT | K39: =IF(F32>=0.02,"Shares outstanding are increasing","") -> Shares outstanding are increasing | P39: =IF(K39="Shares outstanding are increasing",Q39,0) -> -4 | Q39: -4 | V39: =IF(K39="Shares outstanding are increasing","Line 10","") -> Line 10 | X39: See www.Investopedia.com for item definitions
C40: [Free Cash Flow / Sales] | K40: =IF(F$34<F$12,"Sales is growing slower than Cash flow","") -> Sales is growing slower than Cash flow | P40: =IF(K40="Sales is growing slower than Cash flow",Q40,0) -> -4 | Q40: -4 | T40: =IF(ISERROR(R40),99,"") ->  | V40: =IF(K40="Sales is growing slower than Cash flow","Line 11","") -> Line 11
A41: 14 | B41: Return on free cash flow - compare to yield on 10 year Note | F41: =IF(Dividends=0,"Caution",(NetCashOperationsThisYear-PPEThisYear-Dividends)/CommonSharesThisYear)/CurrentPrice -> 0.02828703826 | G41: =IF(F41<X35/100,"The return is less than the 10 year note. Is company spending cash wisely?",IF(F41>X35/100,"Good - Free Cashflow return is greater than the 10 year note rate","")) -> Good - Free Cashflow return is greater than the 10 year note rate | K41: =IF(ISERROR(LTDebtThisYEar),"",IF(F$24=0,"",IF(F$24>0.26,"Debt to Equity is high",""))) ->  | P41: =IF(K41="Debt to Equity is high",Q41,0) -> 0 | Q41: -4 | T41: =IF(ISERROR(R41),99,"") ->  | V41: =IF(K41="Debt to Equity is high","Line 7","") -> 
K42: =IF(F$46<E$46,"The growth in Sales is less than the growth in Assets","") ->  | P42: =IF(K42="The growth in Sales is less than the growth in Assets",Q42,0) -> 0 | Q42: -4 | V42: =IF(K42="The growth in Sales is less than the growth in Assets","Line 16","") ->  | X42: =IF(COUNT(rngBalanceSheet)=14,"...",333) -> ...
A43: 15 | B43: Earnings Yield - compare to yield on 10 year Note | F43: =CurrentPrice/Data!G58/100 -> 0.3350176056 | G43: =IF(F43-0.02>X35,"Earnings Yield is significantly greater than the 10 year note rate","Earnings Yield is not significantly higher than the 10 year note rate.") -> Earnings Yield is significantly greater than the 10 year note rate | K43: =IF(F$41*100<X$35,"Return on Free Cash flow is less than the 10 year bond rate","") ->  | P43: =IF(K43="Return on Free Cash flow is less than the 10 year bond rate",Q43,0) -> 0 | Q43: -4 | R43: =IF(F43-(F44+2)<1,1) -> 1 | S43: =IF(T43=99,"",IF(R43>0,R43*1,0)) -> 1 | U43: 1 | V43: =IF(K43="Return on Free Cash flow is less than the 10 year bond rate","Line 14","") -> 
C44: [Inverse of the P/E --- Price / Earnings] | E44: 10 Year Note Yield = | F44: =X35 -> 0.0295 | G44: Earnings Yield should exceed 10 year Note yield by at least 2% | K44: =IF(F$48<0.1,"Return on Assets should be higher","") ->  | P44: =IF(K44="Return on Assets should be higher",Q44,0) -> 0 | Q44: -4 | V44: =IF(K44="Return on Assets should be higher","Line 17","") -> 
E45: Asset growth | F45: Sales growth | K45: =IF(F$50<0.15,"Return on Equity is inadequate","") ->  | P45: =IF(K45="Return on Equity is inadequate",Q45,0) -> 0 | Q45: -4 | V45: =IF(K45="Return on Equity is inadequate","Line 18","") -> 
A46: 16 | B46: Asset Utilization | E46: =ROUND(Data!M41,3) -> 0.063 | F46: =ROUND(F12,3) -> 0.063 | G46: =IF(E46>F46,"Good, Sales is growing faster than Assets",IF(F46>E46,"Caution-Assets are growing faster than Sales","")) ->  | J46: 5a | K46: =IF(E$55>F$55,"Net Cash is not growing as fast or faster than Net Income","") -> Net Cash is not growing as fast or faster than Net Income | P46: =IF(K46="Net Cash is not growing as fast or faster than Net Income",Q46,0) -> -4 | Q46: -4 | R46: =IF(F46>E46,1,0) -> 0 | S46: =IF(T46=99,"",IF(R46>0,R46*3,0)) -> 0 | U46: 1 | V46: =IF(K46="Net Cash is not growing as fast or faster than Net Income","Line 20","") -> Line 20
C47: How well is management utilizing the assets of the company--turning them into Revenues/Sales? | K47: =IF(CurrentPrice*0.1*2>D$57,"Cash Position per Share is less than 20% of the current price","") -> Cash Position per Share is less than 20% of the current price | P47: =IF(K47="Cash Position per Share is less than 20% of the current price",Q47,0) -> -4 | Q47: -4 | R47: =IF(F43>0.05,1,0) -> 1 | S47: =IF(T47=99,"",IF(R47>0,R47*3,0)) -> 3 | U47: 3 | V47: =IF(K47="Cash Position per Share is less than 20% of the current price","Line 21","") -> Line 21
A48: 17 | B48: Return on Assets (ROA) | F48: =NetProfitThisYear/Data!G14 -> 0.1789227053 | G48: This measurement of profitability includes debt--an important factor | K48: =IF(F37="none","",IF(F37<=2,"The dividend may be in danger of being cut","")) ->  | P48: =IF(K48="The dividend may be in danger of being cut",Q48,0) -> 0 | Q48: -4 | V48: =IF(K48="The dividend may be in danger of being cut","Line 12","") -> 
C49: [Net Income / Total Assets] | G49: See Graph 6 for the reasons why | J49: 6
A50: 18 | B50: Return on Equity (ROE) | F50: =NetProfitThisYear/TotalStockholdersEquity -> 0.8914482393 | G50: This measurement of profitability does not include debt--an important factor
C51: [Net Income / Total Equity] | G51: See graph 6 for the reasons why
A52: 19 | B52: Earnings Confidence Rating -- Measures quality of Earnings | F52: =IF(OR(X31<=0,COUNT(X27,X31)<2),NA(),X31/X27) -> 1.717147717 | G52: The higher the number the higher the quality of Earnings. | J52: 7a | P52: =IF(K52="Short Interest is becoming a concern--Is it also increasing?",Q52,0) -> -4 | Q52: -4
C53: [Net Cash from Operations / Net Income] | G53: One or less than one is very serious. Earnings quality is very low. | R53: =IF(ISERROR(F52),0,IF(F52>3,3,IF(F52>1.5,2,IF(F52<1,0)))) -> 2 | S53: =IF(T53=99,"",IF(R53>0,R53*3,0)) -> 6 | T53: =IF(ISERROR(R53),99,"") ->  | U53: 1
E54: Net Income | F54: Net Cash | J54: 8 | P54: =COUNT(P30:P53) -> 20 | Q54: =SUM(Q30:Q52) -> -80
A55: 20 | B55: Compare - Net Income with Net Cash | E55: =X28/X27-1 -> 0.06677106677 | F55: =IF(OR(X32<=0,COUNT(X31,X32)<2),"NA",ROUND((X31/X32-1),2)) -> -0.03 | G55: =IF(NetCashOperationsThisYear="--","Data not reported",IF(E55>F55,"Oops - Net Cash is growing at a slower rate than Net Income",IF(F55>E55,"Net Cash is growing faster than Net Income. That normally is positive",""))) -> Oops - Net Cash is growing at a slower rate than Net Income | K55: =Data!I76 -> 
C56: =IF(COUNT(E55)<1,"",IF(E55<0.01,"Caution - Net Income is declining","Net Income is growing")) -> Net Income is growing | G56: =IF(COUNT(F55)<1,"",IF(F55<0.01," Caution - Net Cash is declining"," Net Cash is growing")) -> Caution - Net Cash is declining | J56: 6a | P56: =IF(G55="Oops - Net Cash is growing at a slower rate than Net Income",-1,IF(G55="Net Cash is growing faster than Net Income. That normally is positive",1,0)) -> -1 | Q56: =IF(R56=99,"",IF(P56>0,P56*3,0)) -> 0 | R56: =IF(G55="Oops - Net Cash is growing at a slower rate than Net Income",-1,IF(G55="Net Cash is growing faster than Net Income. That normally is positive",1,0)) -> -1 | S56: =IF(T56=99,"",IF(R56>0,R56*3,0)) -> 0 | U56: 3
A57: 21 | B57: Cash Position per Share: | D57: =IF(COUNT(X18)<1,NA(),(X7)/X18) -> 11.6647797 | E57: per share in cash beyond debt. | H57: =IF(COUNT(D57)<1,"",IF(D57>0.00001,"This represents actual cash included in the","A small or negative amount isn't considered too ")) -> This represents actual cash included in the | P57: =IF(G56=" Caution - Net Cash is declining",0,IF(G56=" Net Cash is growing",1,0)) -> 0 | Q57: =IF(R57=99,"",IF(P57>0,P57*3,0)) -> 0 | R57: =IF(G56=" Caution - Net Cash is declining",0,IF(G56=" Net Cash is growing",1,0)) -> 0 | S57: =IF(T57=99,"",IF(R57>0,R57*3,0)) -> 0 | U57: 3
C58: [Net Cash / Shrs outstanding] | D58: Offers price support in falling market if positive. | H58: =IF(COUNT(D57)<1,"",IF(D57>0.00001,"price of each share of stock. If significant, (perhaps","serious. But if cash is shrinking and debt is growing,")) -> price of each share of stock. If significant, (perhaps | K58: Danger | P58: =IF(C56="Caution - Net Income is declining",0,IF(C56="Net Income is growing",1,0)) -> 1 | Q58: =IF(R58=99,"",IF(P58>0,P58*3,0)) -> 3 | R58: =IF(C56="Caution - Net Income is declining",0,IF(C56="Net Income is growing",1,0)) -> 1 | S58: =IF(T58=99,"",IF(R58>0,R58*3,0)) -> 3 | U58: 3
C59: =IF(D57/CurrentPrice>0.2,"Good, Cash Position is meaningful - greater than 20% of current price","Oops, Cash Position is not meaningful - less than 20% of current price") -> Oops, Cash Position is not meaningful - less than 20% of current price | H59: =IF(COUNT(D57)<1,"",IF(D57>0.00001,"20% of the share price) it's very positive.","the company may be in weak financial shape.")) -> 20% of the share price) it's very positive. | K59: Caution
B60: =IF(F60>0.15,"At greater than 15%, cash per share may become a factor at",IF(D57>0.2,"Cash position per share is:")) -> Cash position per share is: | F60: =D57/X34 -> 0.06130001417 | K60: Good | P60: =IF(C59="Oops, Cash Position is not meaningful - less than 20% of current price",-1,IF(C59="Good, Cash Position is meaningful - greater than 20% of current price",1,0)) -> -1 | Q60: =IF(P60>0,P60*3,0) -> 0 | R60: =IF(C59="Oops, Cash Position is not meaningful - less than 20% of current price",-1,IF(C59="Good, Cash Position is meaningful - greater than 20% of current price",1,0)) -> -1 | S60: =IF(R60>0,R60*3,0) -> 0 | U60: 3
A61: 24 | K61: Very Good | P61: =IF(G24="Caution, Long-term debt may be excessive -- Check Section 2B of the SSG -- ROE",-1,IF(G24="Long-term Debt is in normal range",1,IF(E24="No long-term debt",1,0))) -> 0 | Q61: =IF(R61=99,"",IF(P61>0,P61*3,0)) -> 0 | R61: =IF(G24="Caution, Long-term debt may be excessive -- Check Section 2B of the SSG -- ROE",-1,IF(G24="Long-term Debt is in normal range",1,IF(G24="No long-term debt",1,0))) -> 0 | S61: =IF(T61=99,"",IF(R61>0,R61*3,0)) -> 0 | U61: 2
C62: NOTE: Ratios are more meaningful if compared to other companies in the same industry. See below for competitors.
A63: 25 | C63: Quick Ratio: | D63: =(TotalCurrentAssets-InventoriesThisYear)/X15 -> 1.227904854 | E63: to 1 | F63: About 1:1 is normal. The higher the better. | P63: =IF(D63>0.9999,1) -> 1 | Q63: =P63*1 -> 1 | R63: =IF(D63>0.9999,1) -> 1 | S63: =R63*1 -> 1 | U63: 1
C64: [Total Assets - Inventories / Total Liabilities]
J65: 9
A66: 26 | C66: Current Ratio | D66: =IF(OR(X15<=0,COUNT(X12,X15)<2),NA(),X12/X15) -> 1.276062848 | E66: to 1 | F66: About 2:1 is normal for manufacturer. 1:1 normal for Utilities. | P66: =IF(D66>1.999,1) -> FALSE | Q66: =P66*1 -> 0 | R66: =IF(D66>1.999,1) -> FALSE | S66: =R66*1 -> 0 | U66: 1
C67: (also called Working Capital Ratio)
C68: [Total Current Assets / Total Current Liabilities]
A69: 27 | C69: Inventory Turnover Ratio: | D69: =IF(X10=0,"No",X24/X10) -> 21.95798146 | E69: =IF(D69="no","inventory","to 1") -> to 1 | F69: The higher the ratio the better. Indicates quality merchandise & proper pricing.
C70: [Cost of Sales / Inventory] | F70: Also note the number of days Inventories are held before they become a product and sold (See "Inventories" above).
F71: =IF(D69>25,"Why is this ratio so high? Check it out. Has Cost of Sales or Inventories changed greatly?","Inventory Ratio appears to be in a normal range") -> Inventory Ratio appears to be in a normal range
A72: 28 | C72: Plant Turnover Ratio: | D72: =IF(COUNT(X22,X13)<2,NA(),X22/X13) -> 13.81177321 | E72: to 1 | F72: The higher the ratio the better. If plant or equipment are added, sales should increase. | P72: =IF(F71="Why is this ratio so high? Check it out. Has Cost of Sales or Inventories changed greatly?",0,IF(F71="Inventory Ratio appears to be in a normal range",1)) -> 1 | Q72: =IF(R72=99,"",IF(P72>0,P72*3,0)) -> 3 | R72: =IF(F71="Why is this ratio so high? Check it out. Has Cost of Sales or Inventories changed greatly?",0,IF(F71="Inventory Ratio appears to be in a normal range",1)) -> 1 | S72: =IF(T72=99,"",IF(R72>0,R72*3,0)) -> 3 | U72: 2
C73: (Sales / Prop. Plant & Equip.) | E73: Be aware it takes time for a new plant to come on line and benefit sales. Check to see what the funds for PP&E were spent for.
A75: 29 | C75: Price to Sales Ratio: | D75: =IF(OR(X22<=0,COUNT(X34,X22,X18)<3),NA(),X34/(X22/X18)) -> 5.279017188 | F75: The lower the amount the better. This is the amount invested for each dollar of sales. This ratio is Industry sensitive. | P75: =SUM(P3:P72) -> 50 | Q75: =SUM(Q6:Q72) -> 23 | R75: =SUM(R6:R72) -> 14 | S75: 52 | T75: 0 | U75: 100
C76: [Today's Price / Revenues per Share] | F76: This ratio will be higher for companies with high profit margins and growth. Compare to same industry companies. | T76: =IF(ISERROR(R76),99,"") -> 
C77: NOTE: If there are large changes in year to year results, check to see if acquisitions have skewed the results of the analysis
C78: =IF(H$100-F$100<10,"","Fair Value may be out of date. Please update the value.") ->  | L78: Copyright Bob Adams 2017 All Rights Reserved
C79: Closing Price | D79: =Data!D75 -> 190.29 | E79: CLICK HERE FOR INTRINSIC VALUE
C80: Enter Discounted CF here >>> | D80: 29 | E80: =IF(H80>0,"Company is selling at a discount of:","Company is over valued") -> Company is over valued | H80: =((D79/D80)-1)/-1 -> -5.561724138
C81: Discounted Cash Flow is not an automatic feature. Click the link above. When on the site type in the ticker symbol.
C82: =IF(H82-F82>20,"Enter the date IV the was updated (Todays date) >>","Intrinsic Value is up to date") -> Enter the date IV the was updated (Todays date) >> | F82: 2017-09-12 | H82: =TODAY() -> 2018-07-31
C84: An attempt to provide accurate information on this spreadsheet has been made but is not guaranteed. It uses data available from free data sites which change their formatting at times, which causes the tool to fail. If a problem is noticed please email me. bobatseattle@gmail.com
T99: =IF(ISERROR(S99),99,"") -> 

Sheet Data
B1: =Analysis!E2 -> aapl
B3: Annual Balance Sheet Data
A4: =MATCH(B4,AnnBS!A$200:A$500,0) -> 189 | B4: All items in Millions except Per Share data. | C4: =OFFSET(INDEX(AnnBS!$A$200:$M$500,$A4,COLUMN()-COLUMN($A4)),1,0) -> 2017-09-30 | D4: =OFFSET(INDEX(AnnBS!$A$200:$M$500,$A4,COLUMN()-COLUMN($A4)),1,0) -> 2016-09-30 | E4: =OFFSET(INDEX(AnnBS!$A$200:$M$500,$A4,COLUMN()-COLUMN($A4)),1,0) -> 2015-09-30 | F4: =OFFSET(INDEX(AnnBS!$A$200:$M$500,$A4,COLUMN()-COLUMN($A4)),1,0) -> 2014-09-30 | G4: =OFFSET(INDEX(AnnBS!$A$200:$M$500,$A4,COLUMN()-COLUMN($A4)),1,0) -> 2013-09-30 | I4: =G4 -> 2013-09-30 | J4: =F4 -> 2014-09-30 | K4: =E4 -> 2015-09-30 | L4: =D4 -> 2016-09-30 | M4: =C4 -> 2017-09-30
A5: =MATCH(B5,AnnBS!A$200:A$500,0) -> 189 | B5: All items in Millions except Per Share data. | C5: =OFFSET(INDEX(AnnBS!$A$200:$M$500,$A5,COLUMN()-COLUMN($A5)),1,0) -> 2017-09-30 | D5: =OFFSET(INDEX(AnnBS!$A$200:$M$500,$A5,COLUMN()-COLUMN($A5)),1,0) -> 2016-09-30 | E5: =OFFSET(INDEX(AnnBS!$A$200:$M$500,$A5,COLUMN()-COLUMN($A5)),1,0) -> 2015-09-30 | F5: =OFFSET(INDEX(AnnBS!$A$200:$M$500,$A5,COLUMN()-COLUMN($A5)),1,0) -> 2014-09-30 | G5: =OFFSET(INDEX(AnnBS!$A$200:$M$500,$A5,COLUMN()-COLUMN($A5)),1,0) -> 2013-09-30
A7: =MATCH(B7,AnnBS!A$200:A$500,0) -> 192 | B7: Cash & Equivalents | C7: =INDEX(AnnBS!$A$200:$M$500,$A7,COLUMN()-COLUMN($A7)) -> 74181 | D7: =INDEX(AnnBS!$A$200:$M$500,$A7,COLUMN()-COLUMN($A7)) -> 67155 | E7: =INDEX(AnnBS!$A$200:$M$500,$A7,COLUMN()-COLUMN($A7)) -> 41601 | F7: =INDEX(AnnBS!$A$200:$M$500,$A7,COLUMN()-COLUMN($A7)) -> 25077 | G7: =INDEX(AnnBS!$A$200:$M$500,$A7,COLUMN()-COLUMN($A7)) -> 40546 | I7: =G7 -> 40546 | J7: =F7 -> 25077 | K7: =E7 -> 41601 | L7: =D7 -> 67155 | M7: =C7 -> 74181 | N7: Annual data
A8: =MATCH(B8,AnnBS!A$200:A$500,0) ->  | B8: Marketable Securities | C8: =INDEX(AnnBS!$A$200:$M$500,$A8,COLUMN()-COLUMN($A8)) ->  | D8: =INDEX(AnnBS!$A$200:$M$500,$A8,COLUMN()-COLUMN($A8)) ->  | E8: =INDEX(AnnBS!$A$200:$M$500,$A8,COLUMN()-COLUMN($A8)) ->  | F8: =INDEX(AnnBS!$A$200:$M$500,$A8,COLUMN()-COLUMN($A8)) ->  | G8: =INDEX(AnnBS!$A$200:$M$500,$A8,COLUMN()-COLUMN($A8)) ->  | I8: =IF(C8="--",0,C8) ->  | J8: =IF(D8="--",0,D8) ->  | N8: Annual data
A9: =MATCH(B9,AnnBS!A$200:A$500,0) -> 193 | B9: Receivables | C9: =INDEX(AnnBS!$A$200:$M$500,$A9,COLUMN()-COLUMN($A9)) -> 35673 | D9: =INDEX(AnnBS!$A$200:$M$500,$A9,COLUMN()-COLUMN($A9)) -> 29299 | E9: =INDEX(AnnBS!$A$200:$M$500,$A9,COLUMN()-COLUMN($A9)) -> 30343 | F9: =INDEX(AnnBS!$A$200:$M$500,$A9,COLUMN()-COLUMN($A9)) -> 27219 | G9: =INDEX(AnnBS!$A$200:$M$500,$A9,COLUMN()-COLUMN($A9)) -> 20641 | I9: =G9 -> 20641 | J9: =F9 -> 27219 | K9: =E9 -> 30343 | L9: =D9 -> 29299 | M9: =C9 -> 35673 | N9: Annual data
A10: =MATCH(B10,AnnBS!A$200:A$500,0) -> 195 | B10: Inventories | C10: =INDEX(AnnBS!$A$200:$M$500,$A10,COLUMN()-COLUMN($A10)) -> 4855 | D10: =INDEX(AnnBS!$A$200:$M$500,$A10,COLUMN()-COLUMN($A10)) -> 2132 | E10: =INDEX(AnnBS!$A$200:$M$500,$A10,COLUMN()-COLUMN($A10)) -> 2349 | F10: =INDEX(AnnBS!$A$200:$M$500,$A10,COLUMN()-COLUMN($A10)) -> 2111 | G10: =INDEX(AnnBS!$A$200:$M$500,$A10,COLUMN()-COLUMN($A10)) -> 1764 | I10: =G10 -> 1764 | J10: =F10 -> 2111 | K10: =E10 -> 2349 | L10: =D10 -> 2132 | M10: =C10 -> 4855 | N10: Annual data
I11: =IF(I10<0,-I10,I10) -> 1764 | J11: =IF(J10<0,-J10,J10) -> 2111 | K11: 2349 | L11: 2132 | M11: 4855 | N11: Convert Inventories
A13: =MATCH(B13,AnnBS!A$200:A$500,0) -> 197 | B13: Total Current Assets | C13: =INDEX(AnnBS!$A$200:$M$500,$A13,COLUMN()-COLUMN($A13)) -> 128645 | D13: =INDEX(AnnBS!$A$200:$M$500,$A13,COLUMN()-COLUMN($A13)) -> 106869 | E13: =INDEX(AnnBS!$A$200:$M$500,$A13,COLUMN()-COLUMN($A13)) -> 89378 | F13: =INDEX(AnnBS!$A$200:$M$500,$A13,COLUMN()-COLUMN($A13)) -> 68531 | G13: =INDEX(AnnBS!$A$200:$M$500,$A13,COLUMN()-COLUMN($A13)) -> 73286 | I13: =G13 -> 73286 | J13: =F13 -> 68531 | K13: =E13 -> 89378 | L13: =D13 -> 106869 | M13: =C13 -> 128645 | N13: Annual data
A14: =MATCH(B14,AnnBS!A$200:A$500,0) -> 204 | B14: Total Assets | C14: =INDEX(AnnBS!$A$200:$M$500,$A14,COLUMN()-COLUMN($A14)) -> 375319 | D14: =INDEX(AnnBS!$A$200:$M$500,$A14,COLUMN()-COLUMN($A14)) -> 321686 | E14: =INDEX(AnnBS!$A$200:$M$500,$A14,COLUMN()-COLUMN($A14)) -> 290479 | F14: =INDEX(AnnBS!$A$200:$M$500,$A14,COLUMN()-COLUMN($A14)) -> 231839 | G14: =INDEX(AnnBS!$A$200:$M$500,$A14,COLUMN()-COLUMN($A14)) -> 207000 | I14: =G14 -> 207000 | J14: =F14 -> 231839 | K14: =E14 -> 290479 | L14: =D14 -> 321686 | M14: =C14 -> 375319
G15: =IF(SUM(G9:G14)=0,"Data missing","") ->  | I15: =IF(ISERROR(I13),I14,I13) -> 73286 | J15: =IF(ISERROR(J13),J14,J13) -> 68531 | K15: =IF(ISERROR(K13),K14,K13) -> 89378 | L15: =IF(ISERROR(L13),L14,L13) -> 106869 | M15: =IF(ISERROR(M13),M14,M13) -> 128645 | N15: if error(line 7, use line 8
I16: =I9*365/G40 -> 44.08147563 | J16: =J9*365/F40 -> 54.35014634 | K16: =K9*365/E40 -> 47.38760884 | L16: =L9*365/D40 -> 49.59276847 | M16: =M9*365/C40 -> 56.80067093 | N16: Days waiting for payment--Receivables
B17: Period Ending: | C17: =C4 -> 2017-09-30
B18: =IF(C19=0,"Caution--Some data for this company are not available.","") ->  | J18: =J14/I14-1 -> 0.1199951691 | K18: =K14/J14-1 -> 0.2529341483 | L18: =L14/K14-1 -> 0.1074328953 | M18: =M14/L14-1 -> 0.1667246943 | N18: Total Assets % change
B19: =IF(C19="na","Last year Balance Sheet data has not yet reported.","") ->  | C19: =M7 -> 74181 | D19: (Warning if some data missing) | I19: =I49/I14 -> 0.1789227053 | J19: =J49/J14 -> 0.1704199897 | K19: =K49/K14 -> 0.183813632 | L19: =L49/L14 -> 0.1420235882 | M19: =M49/M14 -> 0.1288264117 | N19: ROA
B20: Do not remove lines 11 & 12 above --they contain verbiage | N20: Net Income/Total Assets
I21: =I49/I35 -> 0.2997757975 | J21: =J49/J35 -> 0.3542004716 | K21: =K49/K35 -> 0.4473545306 | L21: =L49/L35 -> 0.3562366958 | M21: =M49/M35 -> 0.3607018434 | N21: Return on Equity ROE
A22: =MATCH(B22,AnnBS!A$200:A$500,0) -> 198 | B22: Net Property & Equipment | C22: =INDEX(AnnBS!$A$200:$M$500,$A22,COLUMN()-COLUMN($A22)) -> 33783 | D22: =INDEX(AnnBS!$A$200:$M$500,$A22,COLUMN()-COLUMN($A22)) -> 27010 | E22: =INDEX(AnnBS!$A$200:$M$500,$A22,COLUMN()-COLUMN($A22)) -> 22471 | F22: =INDEX(AnnBS!$A$200:$M$500,$A22,COLUMN()-COLUMN($A22)) -> 20624 | G22: =INDEX(AnnBS!$A$200:$M$500,$A22,COLUMN()-COLUMN($A22)) -> 16597 | I22: =G22 -> 16597 | J22: =F22 -> 20624 | K22: =E22 -> 22471 | L22: =D22 -> 27010 | M22: =C22 -> 33783
A23: =MATCH(B23,AnnBS!A$200:A$500,0) -> 204 | B23: Total Assets | C23: =INDEX(AnnBS!$A$200:$M$500,$A23,COLUMN()-COLUMN($A23)) -> 375319 | D23: =INDEX(AnnBS!$A$200:$M$500,$A23,COLUMN()-COLUMN($A23)) -> 321686 | E23: =INDEX(AnnBS!$A$200:$M$500,$A23,COLUMN()-COLUMN($A23)) -> 290479 | F23: =INDEX(AnnBS!$A$200:$M$500,$A23,COLUMN()-COLUMN($A23)) -> 231839 | G23: =INDEX(AnnBS!$A$200:$M$500,$A23,COLUMN()-COLUMN($A23)) -> 207000 | I23: =G23 -> 207000 | J23: =F23 -> 231839 | K23: =E23 -> 290479 | L23: =D23 -> 321686 | M23: =C23 -> 375319
A24: =MATCH(B24,AnnBS!A$200:A$500,0) -> 207 | B24: Accounts Payable | C24: =INDEX(AnnBS!$A$200:$M$500,$A24,COLUMN()-COLUMN($A24)) -> 49049 | D24: =INDEX(AnnBS!$A$200:$M$500,$A24,COLUMN()-COLUMN($A24)) -> 37294 | E24: =INDEX(AnnBS!$A$200:$M$500,$A24,COLUMN()-COLUMN($A24)) -> 35490 | F24: =INDEX(AnnBS!$A$200:$M$500,$A24,COLUMN()-COLUMN($A24)) -> 30196 | G24: =INDEX(AnnBS!$A$200:$M$500,$A24,COLUMN()-COLUMN($A24)) -> 22367 | I24: =G24 -> 22367 | J24: =F24 -> 30196 | K24: =E24 -> 35490 | L24: =D24 -> 37294 | M24: =C24 -> 49049
A25: =MATCH(B25,AnnBS!A$200:A$500,0) -> 213 | B25: Total Current Liabilities | C25: =INDEX(AnnBS!$A$200:$M$500,$A25,COLUMN()-COLUMN($A25)) -> 100814 | D25: =INDEX(AnnBS!$A$200:$M$500,$A25,COLUMN()-COLUMN($A25)) -> 79006 | E25: =INDEX(AnnBS!$A$200:$M$500,$A25,COLUMN()-COLUMN($A25)) -> 80610 | F25: =INDEX(AnnBS!$A$200:$M$500,$A25,COLUMN()-COLUMN($A25)) -> 63448 | G25: =INDEX(AnnBS!$A$200:$M$500,$A25,COLUMN()-COLUMN($A25)) -> 43658 | I25: =G25 -> 43658 | J25: =F25 -> 63448 | K25: =E25 -> 80610 | L25: =D25 -> 79006 | M25: =C25 -> 100814
A26: =MATCH(B26,AnnBS!A$200:A$500,0) -> 221 | B26: Total Liabilities | C26: =INDEX(AnnBS!$A$200:$M$500,$A26,COLUMN()-COLUMN($A26)) -> 241272 | D26: =INDEX(AnnBS!$A$200:$M$500,$A26,COLUMN()-COLUMN($A26)) -> 193437 | E26: =INDEX(AnnBS!$A$200:$M$500,$A26,COLUMN()-COLUMN($A26)) -> 171124 | F26: =INDEX(AnnBS!$A$200:$M$500,$A26,COLUMN()-COLUMN($A26)) -> 120292 | G26: =INDEX(AnnBS!$A$200:$M$500,$A26,COLUMN()-COLUMN($A26)) -> 83451 | I26: =G26 -> 83451 | J26: =F26 -> 120292 | K26: =E26 -> 171124 | L26: =D26 -> 193437 | M26: =C26 -> 241272 | N26: Total Liabilities
A27: =MATCH(B27,AnnBS!A$200:A$500,0) ->  | I27: =I40/I10 -> 19.37755102 | J27: =J40/J10 -> 17.31833254 | K27: =K40/K10 -> 19.899106 | L27: =L40/L10 -> 20.22879925 | M27: =M40/M10 -> 9.443213182 | N27: Inventory turnover Ratio
A28: =MATCH(B28,AnnBS!A$200:A$500,0) -> 222 | B28: Shareholders Equity | C28: =INDEX(AnnBS!$A$200:$M$500,$A28,COLUMN()-COLUMN($A28)) -> 43008 | D28: =INDEX(AnnBS!$A$200:$M$500,$A28,COLUMN()-COLUMN($A28)) -> 42643 | E28: =INDEX(AnnBS!$A$200:$M$500,$A28,COLUMN()-COLUMN($A28)) -> 42277 | F28: =INDEX(AnnBS!$A$200:$M$500,$A28,COLUMN()-COLUMN($A28)) -> 41912 | G28: =INDEX(AnnBS!$A$200:$M$500,$A28,COLUMN()-COLUMN($A28)) -> 41547 | N28: Total Revenue/Total Inventory
N29: =M30/M35 -> 0.7251710221 | O29: Debt to Equity
A30: =MATCH(B30,AnnBS!A$200:A$500,0) -> 217 | B30: Long-Term Debt | C30: =INDEX(AnnBS!$A$200:$M$500,$A30,COLUMN()-COLUMN($A30)) -> 97207 | D30: =INDEX(AnnBS!$A$200:$M$500,$A30,COLUMN()-COLUMN($A30)) -> 75427 | E30: =INDEX(AnnBS!$A$200:$M$500,$A30,COLUMN()-COLUMN($A30)) -> 53463 | F30: =INDEX(AnnBS!$A$200:$M$500,$A30,COLUMN()-COLUMN($A30)) -> 28987 | G30: =INDEX(AnnBS!$A$200:$M$500,$A30,COLUMN()-COLUMN($A30)) -> 16960 | I30: =G30 -> 16960 | J30: =F30 -> 28987 | K30: =E30 -> 53463 | L30: =D30 -> 75427 | M30: =C30 -> 97207 | N30: LT Debt
I31: =I68/I39 -> -0.04777368205 | J31: =J68/J39 -> -0.0523592002 | K31: =K68/K39 -> -0.04812271356 | L31: =L68/L39 -> -0.05905239776 | M31: =M68/M39 -> -0.05431567743 | N31: Cap expenditures as % of Sales
A32: =MATCH(B32,AnnBS!A$200:A$500,0) -> 232 | B32: Shares Outstanding | C32: =INDEX(AnnBS!$A$200:$M$500,$A32,COLUMN()-COLUMN($A32)) -> 5165.2 | D32: =INDEX(AnnBS!$A$200:$M$500,$A32,COLUMN()-COLUMN($A32)) -> 5388.4 | E32: =INDEX(AnnBS!$A$200:$M$500,$A32,COLUMN()-COLUMN($A32)) -> 5702.7 | F32: =INDEX(AnnBS!$A$200:$M$500,$A32,COLUMN()-COLUMN($A32)) -> 5864.8 | G32: =INDEX(AnnBS!$A$200:$M$500,$A32,COLUMN()-COLUMN($A32)) -> 6359.4 | I32: =G32 -> 6359.4 | J32: =F32 -> 5864.8 | K32: =E32 -> 5702.7 | L32: =D32 -> 5388.4 | M32: =C32 -> 5165.2 | N32: Shares
I33: =IF(ISERROR(I13),I14/I35,I13/I25) -> 1.678638508 | J33: =IF(ISERROR(J13),J14/J35,J13/J25) -> 1.080112848 | K33: =IF(ISERROR(K13),K14/K35,K13/K25) -> 1.108770624 | L33: =IF(ISERROR(L13),L14/L35,L13/L25) -> 1.352669418 | M33: =IF(ISERROR(M13),M14/M35,M13/M25) -> 1.276062848 | N33: Current Ratio
N34: (Total Curr Ass-Inv)/Curr Liab
A35: =MATCH(B35,AnnBS!A$200:A$500,0) -> 229 | B35: Total Shareholder's Equity | C35: =INDEX(AnnBS!$A$200:$M$500,$A35,COLUMN()-COLUMN($A35)) -> 134047 | D35: =INDEX(AnnBS!$A$200:$M$500,$A35,COLUMN()-COLUMN($A35)) -> 128249 | E35: =INDEX(AnnBS!$A$200:$M$500,$A35,COLUMN()-COLUMN($A35)) -> 119355 | F35: =INDEX(AnnBS!$A$200:$M$500,$A35,COLUMN()-COLUMN($A35)) -> 111547 | G35: =INDEX(AnnBS!$A$200:$M$500,$A35,COLUMN()-COLUMN($A35)) -> 123549 | I35: =G35 -> 123549 | J35: =F35 -> 111547 | K35: =E35 -> 119355 | L35: =D35 -> 128249 | M35: =C35 -> 134047
I36: =IF(ISERROR(I13),(I15-I10)/I35,(I13-I10)/I25) -> 1.638233543 | J36: =IF(ISERROR(J13),(J15-J10)/J35,(J13-J10)/J25) -> 1.046841508 | K36: =IF(ISERROR(K13),(K15-K10)/K35,(K13-K10)/K25) -> 1.079630319 | L36: =IF(ISERROR(L13),(L15-L10)/L35,(L13-L10)/L25) -> 1.325684125 | M36: =IF(ISERROR(M13),(M15-M10)/M35,(M13-M10)/M25) -> 1.227904854 | N36: Quick Ratio
N37: Total Curr Assets/Total Curr Liabilities
C38: =Analysis!C4 -> (Over 10 Billion in sales) | I38: =I49/(I35+I29) -> 0.2997757975 | J38: =J49/(J35+J29) -> 0.3542004716 | K38: =K49/(K35+K29) -> 0.4473545306 | L38: =L49/(L35+L29) -> 0.3562366958 | M38: =M49/(M35+M29) -> 0.3607018434 | N38: ROC = Net Profit/(LT Debt+Equity)
B39: Annual Income Statement | I39: =G40 -> 170910 | J39: =F40 -> 182795 | K39: =E40 -> 233715 | L39: =D40 -> 215639 | M39: =C40 -> 229234 | N39: Revenues
A40: =MATCH(B40,Income!A$200:A$524,0) -> 191 | B40: Sales | C40: =INDEX(Income!$A$200:$Z$500,$A40,COLUMN()-COLUMN($A40)) -> 229234 | D40: =INDEX(Income!$A$200:$Z$500,$A40,COLUMN()-COLUMN($A40)) -> 215639 | E40: =INDEX(Income!$A$200:$Z$500,$A40,COLUMN()-COLUMN($A40)) -> 233715 | F40: =INDEX(Income!$A$200:$Z$500,$A40,COLUMN()-COLUMN($A40)) -> 182795 | G40: =INDEX(Income!$A$200:$Z$500,$A40,COLUMN()-COLUMN($A40)) -> 170910 | I40: =I39/5 -> 34182 | J40: =J39/5 -> 36559 | K40: 46743 | L40: 43127.8 | M40: 45846.8 | N40: divided by 5
J41: =J40/I40-1 -> 0.06953952373 | K41: =K40/J40-1 -> 0.278563418 | L41: =L40/K40-1 -> -0.07734206191 | M41: =M40/L40-1 -> 0.06304518199 | N41: Revenue % change
A42: =MATCH(B42,Income!A$200:A$524,0) -> 192 | B42: Cost Of Goods | C42: =INDEX(Income!$A$200:$Z$500,$A42,COLUMN()-COLUMN($A42)) -> 141048 | D42: =INDEX(Income!$A$200:$Z$500,$A42,COLUMN()-COLUMN($A42)) -> 131376 | E42: =INDEX(Income!$A$200:$Z$500,$A42,COLUMN()-COLUMN($A42)) -> 140089 | F42: =INDEX(Income!$A$200:$Z$500,$A42,COLUMN()-COLUMN($A42)) -> 112258 | G42: =INDEX(Income!$A$200:$Z$500,$A42,COLUMN()-COLUMN($A42)) -> 106606 | I42: =G42 -> 106606 | J42: =F42 -> 112258 | K42: =E42 -> 140089 | L42: =D42 -> 131376 | M42: =C42 -> 141048
A45: =MATCH(B45,Income!A$200:A$524,0) -> 208 | B45: Depreciation & Amortization (Cash Flow) | C45: =INDEX(Income!$A$200:$Z$500,$A45,COLUMN()-COLUMN($A45)) -> 10157 | D45: =INDEX(Income!$A$200:$Z$500,$A45,COLUMN()-COLUMN($A45)) -> 10505 | E45: =INDEX(Income!$A$200:$Z$500,$A45,COLUMN()-COLUMN($A45)) -> 11257 | F45: =INDEX(Income!$A$200:$Z$500,$A45,COLUMN()-COLUMN($A45)) -> 7946 | G45: =INDEX(Income!$A$200:$Z$500,$A45,COLUMN()-COLUMN($A45)) -> 6757
I46: =(I39-I42)/I39 -> 0.3762448072 | J46: =(J39-J42)/J39 -> 0.3858803578 | K46: =(K39-K42)/K39 -> 0.4005990202 | L46: =(L39-L42)/L39 -> 0.3907595565 | M46: =(M39-M42)/M39 -> 0.3846986049 | N46: Gross Margin--Annual
A47: =MATCH(B47,Income!A$200:A$524,0) -> 195 | B47: Income After Depreciation & Amortization | C47: =INDEX(Income!$A$200:$Z$500,$A47,COLUMN()-COLUMN($A47)) -> 61344 | D47: =INDEX(Income!$A$200:$Z$500,$A47,COLUMN()-COLUMN($A47)) -> 60024 | E47: =INDEX(Income!$A$200:$Z$500,$A47,COLUMN()-COLUMN($A47)) -> 71230 | F47: =INDEX(Income!$A$200:$Z$500,$A47,COLUMN()-COLUMN($A47)) -> 52503 | G47: =INDEX(Income!$A$200:$Z$500,$A47,COLUMN()-COLUMN($A47)) -> 48999 | I47: =G47 -> 48999 | J47: =F47 -> 52503 | K47: =E47 -> 71230 | L47: =D47 -> 60024 | M47: =C47 -> 61344 | N47: (Revenue-COGS)/Revenue
A48: =MATCH(B48,Income!A$200:A$524,0) -> 198 | B48: Pretax Income | C48: =INDEX(Income!$A$200:$Z$500,$A48,COLUMN()-COLUMN($A48)) -> 64089 | D48: =INDEX(Income!$A$200:$Z$500,$A48,COLUMN()-COLUMN($A48)) -> 61372 | E48: =INDEX(Income!$A$200:$Z$500,$A48,COLUMN()-COLUMN($A48)) -> 72515 | F48: =INDEX(Income!$A$200:$Z$500,$A48,COLUMN()-COLUMN($A48)) -> 53483 | G48: =INDEX(Income!$A$200:$Z$500,$A48,COLUMN()-COLUMN($A48)) -> 50155 | I48: =I47/I39 -> 0.2866947516 | J48: =J47/J39 -> 0.2872233923 | K48: =K47/K39 -> 0.3047729072 | L48: =L47/L39 -> 0.2783541011 | M48: =M47/M39 -> 0.2676042821 | N48: Operating Margin
A49: =MATCH(B49,Income!A$200:A$524,0) -> 205 | B49: Net Income | C49: =INDEX(Income!$A$200:$Z$500,$A49,COLUMN()-COLUMN($A49)) -> 48351 | D49: =INDEX(Income!$A$200:$Z$500,$A49,COLUMN()-COLUMN($A49)) -> 45687 | E49: =INDEX(Income!$A$200:$Z$500,$A49,COLUMN()-COLUMN($A49)) -> 53394 | F49: =INDEX(Income!$A$200:$Z$500,$A49,COLUMN()-COLUMN($A49)) -> 39510 | G49: =INDEX(Income!$A$200:$Z$500,$A49,COLUMN()-COLUMN($A49)) -> 37037 | I49: =G49 -> 37037 | J49: =F49 -> 39510 | K49: =E49 -> 53394 | L49: =D49 -> 45687 | M49: =C49 -> 48351 | N49: (Operating Income/Revenue
I50: =I49/I39 -> 0.2167046984 | J50: =J49/J39 -> 0.2161437676 | K50: =K49/K39 -> 0.228457737 | L50: =L49/L39 -> 0.2118679831 | M50: =M49/M39 -> 0.2109242085 | N50: Net Profit Margin
N51: (Net Income/Revenue
M52: =(G48+G67+G59)/(F48+F67+F59)-1 -> -0.07124479457 | N52: Operating Cash Flow annual change
I53: =I54/I32 -> 1.66132025 | J53: =J54/J32 -> 1.897251398 | K53: 2.027460677 | L53: 2.255029322 | M53: 2.472314722 | N53: Dividend per share
I54: =1-G68 -> 10565 | J54: =1-F68 -> 11127 | K54: =1-E68 -> 11562 | L54: =1-D68 -> 12151 | M54: =1-C68 -> 12770 | N54: Total Dividend
A55: =MATCH(B55,Income!A$200:A$524,0) -> 197 | B55: Interest Expense | C55: =INDEX(Income!$A$200:$Z$500,$A55,COLUMN()-COLUMN($A55)) -> 0 | D55: =INDEX(Income!$A$228:$Z$528,$A55,COLUMN()-COLUMN($A55)) -> 2346 | E55: =INDEX(Income!$A$228:$Z$528,$A55,COLUMN()-COLUMN($A55)) -> 6965 | F55: =INDEX(Income!$A$228:$Z$528,$A55,COLUMN()-COLUMN($A55)) -> 3203 | G55: =INDEX(Income!$A$228:$Z$528,$A55,COLUMN()-COLUMN($A55)) -> 2591
B56: Convert from negative number | C56: =IF(C55<0,-C55,C55) -> 0 | D56: =IF(D55<0,-D55,D55) -> 2346 | E56: 6965 | F56: 3203 | G56: 2591 | I56: =IF(I53="--","",I53+I69) -> 0.3773940938 | J56: =IF(J53="--","",J53+J69) -> 0.2653116901 | K56: =IF(K53="--","",K53+K69) -> 0.055236993 | L56: =IF(L53="--","",L53+L69) -> -0.1081953827 | M56: =IF(M53="--","",M53+M69) -> 0.0617594672 | N56: Div.+ Cap Expense/share
N57: =IF(C53="--",0,IF(C54="--","None",M64/M54)) -> 4.980266249 | O57: Div to Cash from Operations
A58: =MATCH(B58,Income!A$200:A$524,0) -> 213 | B58: Diluted Net EPS | C58: =INDEX(Income!$A$200:$Z$500,$A58,COLUMN()-COLUMN($A58)) -> 9.21 | D58: =INDEX(Income!$A$200:$Z$500,$A58,COLUMN()-COLUMN($A58)) -> 8.31 | E58: =INDEX(Income!$A$200:$Z$500,$A58,COLUMN()-COLUMN($A58)) -> 9.22 | F58: =INDEX(Income!$A$200:$Z$500,$A58,COLUMN()-COLUMN($A58)) -> 6.45 | G58: =INDEX(Income!$A$200:$Z$500,$A58,COLUMN()-COLUMN($A58)) -> 5.68 | I58: =(C58/D58)-1 -> 0.1083032491 | J58: =(D58/E58)-1 -> -0.09869848156 | K58: =(E58/F58)-1 -> 0.4294573643 | L58: =(F58/G58)-1 -> 0.1355633803 | N58: =AVERAGE(I58:L58) -> 0.143656378 | O58: Avg. EPS growth
A59: =MATCH(B59,Income!A$200:A$524,0) -> 199 | B59: Income Taxes | C59: =INDEX(Income!$A$200:$Z$500,$A59,COLUMN()-COLUMN($A59)) -> 15738 | D59: =INDEX(Income!$A$200:$Z$500,$A59,COLUMN()-COLUMN($A59)) -> 15685 | E59: =INDEX(Income!$A$200:$Z$500,$A59,COLUMN()-COLUMN($A59)) -> 19121 | F59: =INDEX(Income!$A$200:$Z$500,$A59,COLUMN()-COLUMN($A59)) -> 13973 | G59: =INDEX(Income!$A$200:$Z$500,$A59,COLUMN()-COLUMN($A59)) -> 13118
A60: =MATCH(B60,Income!A$200:A$524,0) -> 192 | B60: Cost of Goods | C60: =INDEX(Income!$A$200:$Z$500,$A60,COLUMN()-COLUMN($A60)) -> 141048 | D60: =INDEX(Income!$A$200:$Z$500,$A60,COLUMN()-COLUMN($A60)) -> 131376 | E60: =INDEX(Income!$A$200:$Z$500,$A60,COLUMN()-COLUMN($A60)) -> 140089 | F60: =INDEX(Income!$A$200:$Z$500,$A60,COLUMN()-COLUMN($A60)) -> 112258 | G60: =INDEX(Income!$A$200:$Z$500,$A60,COLUMN()-COLUMN($A60)) -> 106606 | N60: =C71*C32/C40 -> 0.2774370294 | O60: Free Cahflow Margin
I61: =I64/I49 -> 1.448983449 | J61: =J64/J49 -> 1.511338902 | K61: =K64/K49 -> 1.522006218 | L61: =IF(L64="--","N/A",L64/L49) -> 1.440759954 | M61: =IF(M64="--","N/A",M64/M49) -> 1.31533991 | N61: Earnings Confidence Rating
B62: Cashflow | M62: =(M49-M70)/AVERAGE(L14:M14) -> -0.04283469989 | N62: Quality of Earnings Ratio
A63: =MATCH(B63,CFlow!A$200:A$524,0) -> 192 | B63: Net Income (Loss) | C63: =INDEX(CFlow!$A$200:$M$500,$A63,COLUMN()-COLUMN($A63)) -> 48351 | D63: =INDEX(CFlow!$A$200:$M$500,$A63,COLUMN()-COLUMN($A63)) -> 45687 | E63: =INDEX(CFlow!$A$200:$M$500,$A63,COLUMN()-COLUMN($A63)) -> 53394 | F63: =INDEX(CFlow!$A$200:$M$500,$A63,COLUMN()-COLUMN($A63)) -> 39510 | G63: =INDEX(CFlow!$A$200:$M$500,$A63,COLUMN()-COLUMN($A63)) -> 37037 | I63: =G63 -> 37037 | J63: =F63 -> 39510 | K63: =E63 -> 53394 | L63: =D63 -> 45687 | M63: =C63 -> 48351
A64: =MATCH(B64,CFlow!A$200:A$524,0) -> 197 | B64: Net Cash From Operating Activities | C64: =INDEX(CFlow!$A$200:$M$500,$A64,COLUMN()-COLUMN($A64)) -> 63598 | D64: =INDEX(CFlow!$A$200:$M$500,$A64,COLUMN()-COLUMN($A64)) -> 65824 | E64: =INDEX(CFlow!$A$200:$M$500,$A64,COLUMN()-COLUMN($A64)) -> 81266 | F64: =INDEX(CFlow!$A$200:$M$500,$A64,COLUMN()-COLUMN($A64)) -> 59713 | G64: =INDEX(CFlow!$A$200:$M$500,$A64,COLUMN()-COLUMN($A64)) -> 53666 | I64: =G64 -> 53666 | J64: =F64 -> 59713 | K64: =E64 -> 81266 | L64: =D64 -> 65824 | M64: =C64 -> 63598 | N64: Cash from Operations
I65: =C64/C32 -> 12.31278556 | J65: =D64/D32 -> 12.21587113 | K65: 14.25044277 | L65: 10.18159187 | M65: 8.438846432 | N65: Annual Free Cash Flow/share
A66: =MATCH(B66,CFlow!A$200:A$524,0) -> 198 | B66: Property & Equipment | C66: =INDEX(CFlow!$A$200:$M$500,$A66,COLUMN()-COLUMN($A66)) -> -12451 | D66: =INDEX(CFlow!$A$200:$M$500,$A66,COLUMN()-COLUMN($A66)) -> -12734 | E66: =INDEX(CFlow!$A$200:$M$500,$A66,COLUMN()-COLUMN($A66)) -> -11247 | F66: =INDEX(CFlow!$A$200:$M$500,$A66,COLUMN()-COLUMN($A66)) -> -9571 | G66: =INDEX(CFlow!$A$200:$M$500,$A66,COLUMN()-COLUMN($A66)) -> -8165 | I66: =1-G66 -> 8166 | J66: =1-F66 -> 9572 | K66: =1-E66 -> 11248 | L66: =1-D66 -> 12735 | M66: =1-C66 -> 12452 | N66: Property & Equipment
A67: =MATCH(B67,CFlow!A$200:A$524,0) -> 193 | B67: Depreciation/Amortization & Depletion | C67: =INDEX(CFlow!$A$200:$M$500,$A67,COLUMN()-COLUMN($A67)) -> 10157 | D67: =INDEX(CFlow!$A$200:$M$500,$A67,COLUMN()-COLUMN($A67)) -> 10505 | E67: =INDEX(CFlow!$A$200:$M$500,$A67,COLUMN()-COLUMN($A67)) -> 11257 | F67: =INDEX(CFlow!$A$200:$M$500,$A67,COLUMN()-COLUMN($A67)) -> 7946 | G67: =INDEX(CFlow!$A$200:$M$500,$A67,COLUMN()-COLUMN($A67)) -> 6757 | I67: =I65/$G$32 -> 0.001936155229 | J67: =J65/$G$32 -> 0.001920915673 | K67: =K65/$G$32 -> 0.002240847057 | L67: =L65/$G$32 -> 0.001601030265 | M67: =M65/$G$32 -> 0.001326987834 | N67: Per share Free Cash Flow
A68: =MATCH(B68,CFlow!A$200:A$524,0) -> 208 | B68: Payment of Dividends & Other Distributions | C68: =INDEX(CFlow!$A$200:$M$500,$A68,COLUMN()-COLUMN($A68)) -> -12769 | D68: =INDEX(CFlow!$A$200:$M$500,$A68,COLUMN()-COLUMN($A68)) -> -12150 | E68: =INDEX(CFlow!$A$200:$M$500,$A68,COLUMN()-COLUMN($A68)) -> -11561 | F68: =INDEX(CFlow!$A$200:$M$500,$A68,COLUMN()-COLUMN($A68)) -> -11126 | G68: =INDEX(CFlow!$A$200:$M$500,$A68,COLUMN()-COLUMN($A68)) -> -10564 | I68: =G66 -> -8165 | J68: =F66 -> -9571 | K68: =E66 -> -11247 | L68: =D66 -> -12734 | M68: =C66 -> -12451 | N68: Capital Expenditures
B69: (convert to positive number) | C69: =1-C68 -> 12770 | D69: =1-D68 -> 12151 | E69: 11562 | F69: 11127 | G69: 10565 | I69: =I68/I32 -> -1.283926157 | J69: =J68/J32 -> -1.631939708 | K69: =K68/K32 -> -1.972223684 | L69: =L68/L32 -> -2.363224705 | M69: =M68/M32 -> -2.410555254 | N69: Cap Exp per share
A70: =MATCH(B70,CFlow!A$200:A$524,0) -> 197 | B70: Net Cash From Operating Activities | C70: =INDEX(CFlow!$A$200:$M$500,$A70,COLUMN()-COLUMN($A70)) -> 63598 | D70: =INDEX(CFlow!$A$200:$M$500,$A70,COLUMN()-COLUMN($A70)) -> 65824 | E70: =INDEX(CFlow!$A$200:$M$500,$A70,COLUMN()-COLUMN($A70)) -> 81266 | F70: =INDEX(CFlow!$A$200:$M$500,$A70,COLUMN()-COLUMN($A70)) -> 59713 | G70: =INDEX(CFlow!$A$200:$M$500,$A70,COLUMN()-COLUMN($A70)) -> 53666 | I70: =I64-I54-I68 -> 51266 | J70: =J64-J54-J68 -> 58157 | K70: 80951 | L70: 66407 | M70: 63279 | N70: Free Cash Flow | O70: (Cash from Oper-PP&E-Dividends)
B71: Free Cashflow per Share | C71: =C64/C32 -> 12.31278556 | D71: =D64/D32 -> 12.21587113 | E71: 14.25044277 | F71: 10.18159187 | G71: 8.438846432 | O71: formula from Investopedia
I72: =G71 -> 8.438846432 | J72: =F71 -> 10.18159187 | K72: =E71 -> 14.25044277 | L72: =D71 -> 12.21587113 | M72: =C71 -> 12.31278556 | N72: =IF(M72="--","No data",(M72/L72)) -> 1.007933485 | O72: Change from prior year
B73: NAME OF COMPANY | C73: =OFFSET(Name!A119,-60,0,1) -> end header wrap | D73: =Name!A60 -> Apple Inc
C74: Price | D74: Price | F74: Price adjustment if price | I74: =C63/I9-1 -> 1.342473717 | J74: =D63/J9-1 -> 0.6784966384 | K74: =E63/K9-1 -> 0.7596809808 | L74: =F63/L9-1 -> 0.3485101881 | M74: =G63/M9-1 -> 0.03823620105 | N74: % difference-Net Earnings/Receivables
C75: =Price2!A25 -> $190.29 USD | D75: =LEFT(C75,7)*1 -> 190.29 | E75: =IF(ISERROR(D75),LEFT(C75,5)*1,D75) -> 190.29 | F75: is less than $10 | M75: =IF(G69="--",0,G69) -> 10565
I76: =IF(SUM(C63:C64)=0,"CAUTION The most recent fiscal year data are incomplete or not yet reported","") ->  | J76: Yellow cell contains data
B79: QUARTERLY INCOME DATA
A80: =MATCH(B80,AnnBS!A$400:A$500,0) -> 35 | B80: All items in Millions except Per Share data. | C80: =OFFSET(INDEX(AnnBS!$A$400:$M$500,$A80,COLUMN()-COLUMN($A80)),1,0) -> 2018-06-30 | D80: =OFFSET(INDEX(AnnBS!$A$400:$M$500,$A80,COLUMN()-COLUMN($A80)),1,0) -> 2018-03-31 | E80: =OFFSET(INDEX(AnnBS!$A$400:$M$500,$A80,COLUMN()-COLUMN($A80)),1,0) -> 2017-12-31 | F80: =OFFSET(INDEX(AnnBS!$A$400:$M$500,$A80,COLUMN()-COLUMN($A80)),1,0) -> 2017-09-30 | G80: =OFFSET(INDEX(AnnBS!$A$400:$M$500,$A80,COLUMN()-COLUMN($A80)),1,0) -> 2017-06-30 | I80: =G80 -> 2017-06-30 | J80: =F80 -> 2017-09-30 | K80: =E80 -> 2017-12-31 | L80: =D80 -> 2018-03-31 | M80: =C80 -> 2018-06-30
B85: Free Cash Flow per Share | C85: =INDEX(#REF!,$A85,COLUMN()-COLUMN($A85)) ->  | D85: =INDEX(#REF!,$A85,COLUMN()-COLUMN($A85)) ->  | E85: =INDEX(#REF!,$A85,COLUMN()-COLUMN($A85)) ->  | F85: =INDEX(#REF!,$A85,COLUMN()-COLUMN($A85)) ->  | G85: =INDEX(#REF!,$A85,COLUMN()-COLUMN($A85)) ->  | I85: =C85 ->  | J85: =D85 ->  | K85: =E85 ->  | L85: =F85 ->  | M85: =G85 ->  | N85: Cash from Operating Activities per share
I86: =IF(I90=0,"No Div.",I85/I90) ->  | J86: =IF(J90=0,"No Div.",J85/J90) ->  | K86: =IF(K90=0,"No Div.",K85/K90) ->  | L86: =IF(L90=0,"No Div.",L85/L90) ->  | M86: =IF(M90=0,"No Div.",M85/M90) ->  | N86: ratio: Dividends to Cash from Operations
I88: =C81/C92 -> 0 | J88: =D81/D92 -> 0 | K88: =E81/E92 -> 0 | L88: =F81/F92 -> 0 | M88: =G81/G92 -> 0 | N88: Ernings confidence rating
A89: =MATCH(B89,Income!$A$350:$A$524,0) ->  | B89: Dividends Per Share | C89: =INDEX(Income!$A$350:V$500,$A89,COLUMN()-COLUMN($A89)) ->  | D89: =INDEX(Income!$A$350:W$500,$A89,COLUMN()-COLUMN($A89)) ->  | E89: =INDEX(Income!$A$350:X$500,$A89,COLUMN()-COLUMN($A89)) ->  | F89: =INDEX(Income!$A$350:Y$500,$A89,COLUMN()-COLUMN($A89)) ->  | G89: =INDEX(Income!$A$350:Z$500,$A89,COLUMN()-COLUMN($A89)) -> 
A90: =MATCH(B90,Income!$A$395:$A$524,0) -> 22 | B90: Sales | C90: =INDEX(Income!$A$395:V$500,$A90,COLUMN()-COLUMN($A90)) -> NA | D90: =INDEX(Income!$A$395:W$500,$A90,COLUMN()-COLUMN($A90)) -> 61137 | E90: =INDEX(Income!$A$395:X$500,$A90,COLUMN()-COLUMN($A90)) -> 88293 | F90: =INDEX(Income!$A$395:Y$500,$A90,COLUMN()-COLUMN($A90)) -> 52579 | G90: =INDEX(Income!$A$395:Z$500,$A90,COLUMN()-COLUMN($A90)) -> 45408 | I90: =G90 -> 45408 | J90: =F90 -> 52579 | K90: =E90 -> 88293 | L90: =D90 -> 61137 | M90: =C90 -> NA | N90: Q Sales
A91: =MATCH(B91,Income!$A$395:$A$524,0) -> 3 | B91: Pretax Income | C91: =INDEX(Income!$A$395:V$500,$A91,COLUMN()-COLUMN($A91)) -> 64089 | D91: =INDEX(Income!$A$395:W$500,$A91,COLUMN()-COLUMN($A91)) -> 61372 | E91: =INDEX(Income!$A$395:X$500,$A91,COLUMN()-COLUMN($A91)) -> 72515 | F91: =INDEX(Income!$A$395:Y$500,$A91,COLUMN()-COLUMN($A91)) -> 53483 | G91: =INDEX(Income!$A$395:Z$500,$A91,COLUMN()-COLUMN($A91)) -> 50155 | I91: =G92 -> 37037 | J91: =F92 -> 39510 | K91: =E92 -> 53394 | L91: =D92 -> 45687 | M91: =C92 -> 48351 | N91: Net Income
A92: =MATCH(B92,Income!$A$395:$A$524,0) -> 10 | B92: Net Income | C92: =INDEX(Income!$A$395:V$500,$A92,COLUMN()-COLUMN($A92)) -> 48351 | D92: =INDEX(Income!$A$395:W$500,$A92,COLUMN()-COLUMN($A92)) -> 45687 | E92: =INDEX(Income!$A$395:X$500,$A92,COLUMN()-COLUMN($A92)) -> 53394 | F92: =INDEX(Income!$A$395:Y$500,$A92,COLUMN()-COLUMN($A92)) -> 39510 | G92: =INDEX(Income!$A$395:Z$500,$A92,COLUMN()-COLUMN($A92)) -> 37037 | I92: =C92*C32 -> 249742585.2 | J92: =D92*D32 -> 246179830.8 | K92: =E92*E32 -> 304489963.8 | L92: =F92*F32 -> 231718248 | M92: =G92*G32 -> 235533097.8 | N92: Q TotalNet Income
A93: =MATCH(B93,Income!$A$395:$A$524,0) -> 23 | B93: Cost Of Goods | C93: =INDEX(Income!$A$395:V$500,$A93,COLUMN()-COLUMN($A93)) -> NA | D93: =INDEX(Income!$A$395:W$500,$A93,COLUMN()-COLUMN($A93)) -> 37715 | E93: =INDEX(Income!$A$395:X$500,$A93,COLUMN()-COLUMN($A93)) -> 54381 | F93: =INDEX(Income!$A$395:Y$500,$A93,COLUMN()-COLUMN($A93)) -> 32648 | G93: =INDEX(Income!$A$395:Z$500,$A93,COLUMN()-COLUMN($A93)) -> 27920 | J93: =(D90/C90)-1 ->  | K93: =(E90/D90)-1 -> 0.4441827371 | L93: =(F90/E90)-1 -> -0.4044941275 | M93: =(G90/F90)-1 -> -0.1363852489 | N93: Sales growth
A94: =MATCH(B94,Income!$A$395:$A$524,0) -> 10 | B94: Net Income | C94: =INDEX(Income!$A$395:V$500,$A94,COLUMN()-COLUMN($A94)) -> 48351 | D94: =INDEX(Income!$A$395:W$500,$A94,COLUMN()-COLUMN($A94)) -> 45687 | E94: =INDEX(Income!$A$395:X$500,$A94,COLUMN()-COLUMN($A94)) -> 53394 | F94: =INDEX(Income!$A$395:Y$500,$A94,COLUMN()-COLUMN($A94)) -> 39510 | G94: =INDEX(Income!$A$395:Z$500,$A94,COLUMN()-COLUMN($A94)) -> 37037 | I94: =G93 -> 27920 | J94: =F93 -> 32648 | K94: =E93 -> 54381 | L94: =D93 -> 37715 | M94: =C93 -> NA | N94: Q Cost of good sold
A95: =MATCH(B95,Income!$A$395:$A$524,0) ->  | B95: Free Cash Flow | C95: =INDEX(Income!$A$395:V$505,$A95,COLUMN()-COLUMN($A95)) ->  | D95: =INDEX(Income!$A$395:W$505,$A95,COLUMN()-COLUMN($A95)) ->  | E95: =INDEX(Income!$A$395:X$505,$A95,COLUMN()-COLUMN($A95)) ->  | F95: =INDEX(Income!$A$395:Y$505,$A95,COLUMN()-COLUMN($A95)) ->  | G95: =INDEX(Income!$A$395:Z$505,$A95,COLUMN()-COLUMN($A95)) ->  | I95: =I91/C90 ->  | J95: =J91/D90 -> 0.6462534962 | K95: =K91/E90 -> 0.6047365023 | L95: =L91/F90 -> 0.8689210521 | M95: =M91/G90 -> 1.064812368 | N95: Profitability on Revenues
A96: =MATCH(B96,Income!A$392:A$524,0) -> 11 | B96: Income From Cont. Operations | C96: =INDEX(Income!$A$395:P$500,$A96,COLUMN()-COLUMN($A96)) -> 43008 | D96: =INDEX(Income!$A$395:Q$500,$A96,COLUMN()-COLUMN($A96)) -> 42643 | E96: =INDEX(Income!$A$395:R$500,$A96,COLUMN()-COLUMN($A96)) -> 42277 | F96: =INDEX(Income!$A$395:S$500,$A96,COLUMN()-COLUMN($A96)) -> 41912 | G96: =INDEX(Income!$A$395:T$500,$A96,COLUMN()-COLUMN($A96)) -> 41547 | I96: =C95 ->  | J96: =D95 ->  | K96: =E95 ->  | L96: =F95 ->  | M96: =G95 ->  | N96: Free Cash Flow
I97: =C92/C90 ->  | J97: =D92/D90 -> 0.7472888758 | K97: =E92/E90 -> 0.6047365023 | L97: =F92/F90 -> 0.7514406892 | M97: =G92/G90 -> 0.8156492248 | N97: Net Profit Margin
B98: Qtr Balance Sheet data | I98: =(C90-C93)/C90 ->  | J98: =(D90-D93)/D90 -> 0.3831067929 | K98: =(E90-E93)/E90 -> 0.3840848085 | L98: =(F90-F93)/F90 -> 0.3790676886 | M98: =(G90-G93)/G90 -> 0.3851303735 | N98: Quarterly Gross Margin
A99: =MATCH(B99,AnnBS!A$415:A$500,0) -> 29 | B99: Net Property & Equipment | C99: =INDEX(AnnBS!$A$415:L$500,$A99,COLUMN()-COLUMN($A99)) -> NA | D99: =INDEX(AnnBS!$A$415:M$500,$A99,COLUMN()-COLUMN($A99)) -> 35077 | E99: =INDEX(AnnBS!$A$415:N$500,$A99,COLUMN()-COLUMN($A99)) -> 33679 | F99: =INDEX(AnnBS!$A$415:O$500,$A99,COLUMN()-COLUMN($A99)) -> 33783 | G99: =INDEX(AnnBS!$A$415:P$500,$A99,COLUMN()-COLUMN($A99)) -> 29286 | I99: =C94/C90 ->  | J99: =D94/D90 -> 0.7472888758 | K99: =E94/E90 -> 0.6047365023 | L99: =F94/F90 -> 0.7514406892 | M99: =G94/G90 -> 0.8156492248 | N99: Operating Margin
I100: =1-C99 ->  | J100: =1-D99 -> -35076 | K100: =1-E99 -> -33678 | L100: =1-F99 -> -33782 | M100: =1-G99 -> -29285 | N100: Property Plant & Equipment
A101: =MATCH(B101,AnnBS!A$415:A$500,0) -> 24 | B101: Receivables | C101: =INDEX(AnnBS!$A$415:L$500,$A101,COLUMN()-COLUMN($A101)) -> NA | D101: =INDEX(AnnBS!$A$415:M$500,$A101,COLUMN()-COLUMN($A101)) -> 22408 | E101: =INDEX(AnnBS!$A$415:N$500,$A101,COLUMN()-COLUMN($A101)) -> 50899 | F101: =INDEX(AnnBS!$A$415:O$500,$A101,COLUMN()-COLUMN($A101)) -> 35673 | G101: =INDEX(AnnBS!$A$415:P$500,$A101,COLUMN()-COLUMN($A101)) -> 22632 | I101: =IF(C101="--","No data",C101/$C$108) ->  | J101: =IF(D101="--","No data",D101/$C$108) -> 4.338263765 | K101: =IF(E101="--","No data",E101/$C$108) -> 9.854216681 | L101: =IF(F101="--","No data",F101/$C$108) -> 6.906412143 | M101: =IF(G101="--","No data",G101/$C$108) -> 4.381630915 | N101: Accts Receivable per share
A102: =MATCH(B102,AnnBS!A$415:A$500,0) -> 26 | B102: Inventories | C102: =INDEX(AnnBS!$A$415:L$500,$A102,COLUMN()-COLUMN($A102)) -> NA | D102: =INDEX(AnnBS!$A$415:M$500,$A102,COLUMN()-COLUMN($A102)) -> 7662 | E102: =INDEX(AnnBS!$A$415:N$500,$A102,COLUMN()-COLUMN($A102)) -> 4421 | F102: =INDEX(AnnBS!$A$415:O$500,$A102,COLUMN()-COLUMN($A102)) -> 4855 | G102: =INDEX(AnnBS!$A$415:P$500,$A102,COLUMN()-COLUMN($A102)) -> 3146 | I102: =G102 -> 3146 | J102: =F102 -> 4855 | K102: =E102 -> 4421 | L102: =D102 -> 7662 | M102: =C102 -> NA | N102: Q Inventories
I103: =C99/C90 ->  | J103: =D99/D90 -> 0.5737442138 | K103: =E99/E90 -> 0.3814458677 | L103: =F99/F90 -> 0.6425188764 | M103: =G99/G90 -> 0.6449524313 | N103: Qtr Cap Expenditures/Sales
I104: =G99 -> 29286 | J104: =F99 -> 33783 | K104: =E99 -> 33679 | L104: =D99 -> 35077 | M104: =C99 -> NA | N104: PP&E per share
A105: =MATCH(B105,AnnBS!A$415:A$500,0) -> 35 | B105: Total assets | C105: =INDEX(AnnBS!$A$415:L$500,$A105,COLUMN()-COLUMN($A105)) -> NA | D105: =INDEX(AnnBS!$A$415:M$500,$A105,COLUMN()-COLUMN($A105)) -> 367502 | E105: =INDEX(AnnBS!$A$415:N$500,$A105,COLUMN()-COLUMN($A105)) -> 406794 | F105: =INDEX(AnnBS!$A$415:O$500,$A105,COLUMN()-COLUMN($A105)) -> 375319 | G105: =INDEX(AnnBS!$A$415:P$500,$A105,COLUMN()-COLUMN($A105)) -> 345173 | I105: =C105 -> NA | J105: 367502 | K105: 406794 | L105: 375319 | M105: 345173
A106: =MATCH(B106,AnnBS!A$415:A$500,0) -> 39 | B106: Current Portion Long-Term Debt | C106: =INDEX(AnnBS!$A$415:L$500,$A106,COLUMN()-COLUMN($A106)) -> NA | D106: =INDEX(AnnBS!$A$415:M$500,$A106,COLUMN()-COLUMN($A106)) -> 20478 | E106: =INDEX(AnnBS!$A$415:N$500,$A106,COLUMN()-COLUMN($A106)) -> 18478 | F106: =INDEX(AnnBS!$A$415:O$500,$A106,COLUMN()-COLUMN($A106)) -> 18473 | G106: =INDEX(AnnBS!$A$415:P$500,$A106,COLUMN()-COLUMN($A106)) -> 18475 | I106: NA | J106: 20478 | K106: 18478 | L106: 18473 | M106: 18475 | N106: Q Debt
A107: =MATCH(B107,AnnBS!A$415:A$500,0) -> 7 | B107: Shareholders Equity | C107: =INDEX(AnnBS!$A$415:L$500,$A107,COLUMN()-COLUMN($A107)) -> 43008 | D107: =INDEX(AnnBS!$A$415:M$500,$A107,COLUMN()-COLUMN($A107)) -> 42643 | E107: =INDEX(AnnBS!$A$415:N$500,$A107,COLUMN()-COLUMN($A107)) -> 42277 | F107: =INDEX(AnnBS!$A$415:O$500,$A107,COLUMN()-COLUMN($A107)) -> 41912 | G107: =INDEX(AnnBS!$A$415:P$500,$A107,COLUMN()-COLUMN($A107)) -> 41547
A108: =MATCH(B108,AnnBS!A$415:A$500,0) -> 17 | B108: Shares Outstanding | C108: =INDEX(AnnBS!$A$415:H$500,$A108,COLUMN()-COLUMN($A108)) -> 5165.2 | D108: =INDEX(AnnBS!$A$415:I$500,$A108,COLUMN()-COLUMN($A108)) -> 5388.4 | E108: =INDEX(AnnBS!$A$415:J$500,$A108,COLUMN()-COLUMN($A108)) -> 5702.7 | F108: =INDEX(AnnBS!$A$415:K$500,$A108,COLUMN()-COLUMN($A108)) -> 5864.8 | G108: =INDEX(AnnBS!$A$415:L$500,$A108,COLUMN()-COLUMN($A108)) -> 6359.4 | I108: =IF(I101="no data","N/A",(I101*91.5)/C90) ->  | J108: =IF(J101="no data","N/A",(J101*91.5)/D90) -> 0.006492813427 | K108: =IF(K101="no data","N/A",(K101*91.5)/E90) -> 0.01021214396 | L108: =IF(L101="no data","N/A",(L101*91.5)/F90) -> 0.0120188043 | M108: =IF(M101="no data","N/A",(M101*91.5)/G90) -> 0.008829264198 | N108: Days waiting for payment
I109: =IF(I102=0,"0",C90/C102) ->  | J109: =IF(J102=0,"0",D90/D102) -> 7.979248238 | K109: =IF(K102=0,"0",E90/E102) -> 19.97127347 | L109: =IF(L102=0,"0",F90/F102) -> 10.82986612 | M109: =IF(M102=0,"0",G90/G102) -> 14.43356643 | N109: Inventory Turover
A111: =MATCH(B111,AnnBS!A$415:A$500,0) -> 28 | B111: Total Current Assets | C111: =INDEX(AnnBS!$A$415:L$500,$A111,COLUMN()-COLUMN($A111)) -> NA | D111: =INDEX(AnnBS!$A$415:M$500,$A111,COLUMN()-COLUMN($A111)) -> 130053 | E111: =INDEX(AnnBS!$A$415:N$500,$A111,COLUMN()-COLUMN($A111)) -> 143810 | F111: =INDEX(AnnBS!$A$415:O$500,$A111,COLUMN()-COLUMN($A111)) -> 128645 | G111: =INDEX(AnnBS!$A$415:P$500,$A111,COLUMN()-COLUMN($A111)) -> 112875 | J111: =(D111/C111)-1 ->  | K111: =(E111/D111)-1 -> 0.1057799513 | L111: =(F111/E111)-1 -> -0.1054516376 | M111: =(G111/F111)-1 -> -0.1225854095 | N111: Change in Assets growth
A112: =MATCH(B112,AnnBS!A$415:A$500,0) -> 44 | B112: Total Current Liabilities | C112: =INDEX(AnnBS!$A$415:L$500,$A112,COLUMN()-COLUMN($A112)) -> NA | D112: =INDEX(AnnBS!$A$415:M$500,$A112,COLUMN()-COLUMN($A112)) -> 89320 | E112: =INDEX(AnnBS!$A$415:N$500,$A112,COLUMN()-COLUMN($A112)) -> 115788 | F112: =INDEX(AnnBS!$A$415:O$500,$A112,COLUMN()-COLUMN($A112)) -> 100814 | G112: =INDEX(AnnBS!$A$415:P$500,$A112,COLUMN()-COLUMN($A112)) -> 81302
A113: =MATCH(B113,AnnBS!A$415:A$500,0) ->  | I113: =G115 -> 16960 | J113: =F115 -> 28987 | K113: =E115 -> 53463 | L113: =D115 -> 75427 | M113: =C115 -> 97207 | N113: Long-Term Debt
A114: =MATCH(B114,AnnBS!A$415:A$500,0) -> 17 | B114: Shares Outstanding | C114: =INDEX(AnnBS!$A$415:L$500,$A114,COLUMN()-COLUMN($A114)) -> 5165.2 | D114: =INDEX(AnnBS!$A$415:M$500,$A114,COLUMN()-COLUMN($A114)) -> 5388.4 | E114: =INDEX(AnnBS!$A$415:N$500,$A114,COLUMN()-COLUMN($A114)) -> 5702.7 | F114: =INDEX(AnnBS!$A$415:O$500,$A114,COLUMN()-COLUMN($A114)) -> 5864.8 | G114: =INDEX(AnnBS!$A$415:P$500,$A114,COLUMN()-COLUMN($A114)) -> 6359.4 | I114: =C114 -> 5165.2 | J114: =D114 -> 5388.4 | K114: =E114 -> 5702.7 | L114: =F114 -> 5864.8 | M114: =G114 -> 6359.4 | N114: Qtr Shares Outstanding
A115: =MATCH(B115,AnnBS!A$415:A$500,0) -> 2 | B115: Long-Term Debt | C115: =INDEX(AnnBS!$A$415:L$500,$A115,COLUMN()-COLUMN($A115)) -> 97207 | D115: =INDEX(AnnBS!$A$415:M$500,$A115,COLUMN()-COLUMN($A115)) -> 75427 | E115: =INDEX(AnnBS!$A$415:N$500,$A115,COLUMN()-COLUMN($A115)) -> 53463 | F115: =INDEX(AnnBS!$A$415:O$500,$A115,COLUMN()-COLUMN($A115)) -> 28987 | G115: =INDEX(AnnBS!$A$415:P$500,$A115,COLUMN()-COLUMN($A115)) -> 16960 | I115: =(C111-C102)/C112 ->  | J115: =(D111-D102)/D112 -> 1.370253023 | K115: =(E111-E102)/E112 -> 1.203829412 | L115: =(F111-F102)/F112 -> 1.227904854 | M115: =(G111-G102)/G112 -> 1.349646995 | N115: Quick Ratio 1:1
I116: =C111/C112 ->  | J116: =D111/D112 -> 1.456034483 | K116: =E111/E112 -> 1.242011262 | L116: =F111/F112 -> 1.276062848 | M116: =G111/G112 -> 1.38834223 | N116: Current Ratio 2:1
I117: =C92/C111 ->  | J117: =D92/D111 -> 0.3512952412 | K117: =E92/E111 -> 0.371281552 | L117: =F92/F111 -> 0.3071242567 | M117: =G92/G111 -> 0.328124031 | N117: ROA
A118: =MATCH(B118,'Bond rate'!A$1:A$291,0) -> 213 | B118: Ten-Year Treasury Constant Maturity | C118: =INDEX('Bond rate'!$A$1:$C$291,$A118,COLUMN()-COLUMN($A118)) -> 2.95 | I118: =I92/C107 -> 5806.886747 | J118: =J92/D107 -> 5773.042019 | K118: =K92/E107 -> 7202.260421 | L118: =L92/F107 -> 5528.685054 | M118: =M92/G107 -> 5669.075933 | N118: ROE
N119: ROC
C124: Instructions to convert cell with number and text to number or text only
C125: http://www.excelforum.com/excel-general/683911-need-to-copy-only-select-text-from-one-cell-to-another.html
C127: Do you mean take it out and show just the Numbers in an adjacent cell, leaving the original data intact? If A1 has the value, put this formula in an adjacent cell, then copy the cell down the entire data set.
B128: OFFSET(INDEX(AnnBS!$A$200:$I$500,$A4,COLUMN()-COLUMN($A4)),1,0)
C129: Cppy this formula into adjacent cell (add = equal sign to make it a formuls)
C130: LOOKUP(99^99,--("0"&MID(A1,MIN(SEARCH({0,1,2,3,4,5,6,7,8,9},A1&"0123456789")),ROW($1:$10000))))
C132: Now you have the numbers. If you want the numbers back in the original column REPLACING the original data:
C134: 1) highlight this whole new row of numbers
C135: 2) click CTRL-C to copy
C136: 3) click on the first cell in the original column
C137: 4) select EDIT > PASTE SPECIAL > Values
C139: TO JUST SEPARATE THE TWO PARTS into cells of their own: Requires a space between number and text
C141: 1) Highlight the original column of mixed data
C142: 2) Click on DATA > TEXT TO COLUMNS > DELIMITED > next
C143: 3) Click on [ ] Space
C144: 4) Finish
B146: In Excel, you can use VLOOKUP or INDEX/MATCH functions to reference the data in the web query. For example use a formula like =INDEX(D:D,MATCH("MSFT",B:B,0)) to get the Price for MSFT.
C147: LOOKUP(99^99,--("0"&MID(A1,MIN(SEARCH({0,1,2,3,4,5,6,7,8,9},A1&"0123456789")),ROW($1:$10000))))
C149: 1) Highlight the original column of mixed data
C150: 2) Click on DATA > TEXT TO COLUMNS > DELIMITED > next
C151: 3) Click on [ ] Space
C152: 4) Finish
C159: INDEX('Bal sheet'!$A$3:$M$61,MATCH("",'Bal sheet'!$A$3:$A$65,0),2)
C160: INDEX($A$2:$f$65,MATCH("",$A$2:$A$65,0),2)
C162: OFFSET(Price!A44,1,0)
C164: With the data now in Excel, you can use VLOOKUP or INDEX/MATCH functions to reference the data in the web query. For example use a formula like =INDEX(D:D,MATCH("MSFT",B:B,0)) to get the Price for MSFT.
C167: INDEX('Bal sheet'!$A$3:$M$61,MATCH("",'Bal sheet'!$A$3:$A$65,0),2)

Sheet AnnBS (hidden)
A1: =Analysis!E2 -> aapl
A2: Zacks Investment Research
A4: Join
A5: Sign In
A6: Member Sign In
A7: Keep Me Signed In What does "Remember Me" do?
A8: Forgot Password
A9: Create a New Account
A11: Home
A12: Stocks Stocks +
A14: Stocks
A15: Zacks #1 Rank
A16: Zacks Rank
A17: Zacks Industry Rank
A18: Zacks Sector Rank
A19: Equity Research
A20: Markets
A22: Funds Funds +
A24: Funds
A25: Mutual Funds
A26: ETFs
A27: Mutual Fund Screener
A28: ETF Screener
A29: Top ETFs
A31: Earnings Earnings +
A33: Earnings
A34: Earnings Calendar
A35: Earnings Releases
A36: Earnings ESP
A37: Earnings ESP Filter
A39: Screening Screening +
A41: Screening
A42: Stock Screener
A43: Mutual Fund Screener
A44: ETF Screener
A45: Premium Screens
A46: Quant Monitor
A47: Research Wizard
A49: Finance Finance +
A51: Personal Finance
A52: Insurance
A53: Investing
A54: Money Managing
A55: Real Estate
A56: Retirement Planning
A57: Tax Information
A59: Portfolio Portfolio +
A61: My Portfolio
A62: Create Portfolio
A64: Education Education +
A66: Education
A67: Stocks
A68: Style Scores
A69: Funds
A70: Earnings ESP
A71: Screening
A72: Video
A73: Testimonial
A75: Services Services +
A78: Services Overview
A79: Zacks Ultimate
A80: Zacks Investor Collection
A81: Zacks Premium
A86: Investor Services
A87: ETF Investor
A88: Home Run Investor
A89: Income Investor
A90: Stocks Under $10
A91: Value Investor
A92: Top 10 Stocks
A96: Other Services
A97: Method for Trading
A98: Research Wizard
A99: Zacks Confidential
A105: Trading Services
A106: Black Box Trader
A107: Counterstrike
A108: Insider Trader
A109: Large-Cap Trader
A110: Momentum Trader
A111: Options Trader
A112: Short List
A113: Surprise Trader
A114: TAZR
A118: Innovators
A119: Blockchain
A120: Healthcare
A121: Technology
A123: Menu
A125: Home
A126: Stocks Stocks +
A128: Stocks
A129: Zacks #1 Rank
A130: Zacks Rank
A131: Zacks Industry Rank
A132: Zacks Sector Rank
A133: Equity Research
A134: Markets
A136: Funds Funds +
A138: Funds
A139: Mutual Funds
A140: ETFs
A141: Mutual Fund Screener
A142: ETF Screener
A143: Top ETFs
A145: Earnings Earnings +
A147: Earnings
A148: Earnings Calendar
A149: Earnings Releases
A150: Earnings ESP
A151: Earnings ESP Filter
A153: Screening Screening +
A155: Screening
A156: Stock Screener
A157: Mutual Fund Screener
A158: ETF Screener
A159: Premium Screens
A160: Quant Monitor
A161: Research Wizard
A163: Finance Finance +
A165: Personal Finance
A166: Insurance
A167: Investing
A168: Money Managing
A169: Real Estate
A170: Retirement Planning
A171: Tax Information
A173: Portfolio Portfolio +
A175: My Portfolio
A176: Create Portfolio
A178: Education Education +
A180: Education
A181: Stocks
A182: Style Scores
A183: Funds
A184: Earnings ESP
A185: Screening
A186: Video
A187: Testimonial
A189: Services Services +
A192: Services Overview
A193: Zacks Ultimate
A194: Zacks Investor Collection
A195: Zacks Premium
A200: Investor Services
A201: ETF Investor
A202: Home Run Investor
A203: Income Investor
A204: Stocks Under $10
A205: Value Investor
A206: Top 10 Stocks
A210: Other Services
A211: Method for Trading
A212: Research Wizard
A213: Zacks Confidential
A219: Trading Services
A220: Black Box Trader
A221: Counterstrike
A222: Insider Trader
A223: Large-Cap Trader
A224: Momentum Trader
A225: Options Trader
A226: Short List
A227: Surprise Trader
A228: TAZR
A232: Innovators
A233: Blockchain
A234: Healthcare
A235: Technology
A237: Join
A239: Sign In
A241: Member Sign In
A242: Keep Me Signed In What does "Remember Me" do?
A243: Forgot Password
A244: Create a New Account
A245: Close this window | M245: =MATCH(N245,A200:A300,) ->  | N245: All items in Millions except Per Share data.
N246: =INDEX([1]AnnBS!$A$200:$O$300,$A242,COLUMN()-COLUMN($A242)) -> 
A247: Help
A249: Zacks Investment Research
A250: You are being directed to ZacksTrade, a division of LBMZ Securities and licensed broker-dealer. ZacksTrade and Zacks.com are separate companies. The web link between the two companies is not a solicitation or offer to invest in a particular security or type of security. ZacksTrade does not endorse or adopt any particular investment strategy, any analyst opinion/rating/report or any approach to evaluating indiv idual securities.
A251: If you wish to go to ZacksTrade, click OK. If you do not, click Cancel.
A252: OK Cancel
A253: Back to top
A254: more
A255: Financials
A256: Balance Sheet
A257: close
A259: Quotes & News
A262: Quote Overview
A263: Zacks News
A264: Partner News
A266: Zacks Research
A269: *Snapshot
A270: *Analyst Report
A271: *Style Scores
A272: *Detailed Estimates
A273: Comparison to Industry
A274: Zacks Experts View
A276: More Research
A279: *Broker Recommendations
... 246 more rows

Sheet Name (hidden)
A1: =Analysis!E2 -> aapl | B1: http://financials.morningstar.com/company-profile/c.action?t=CCL&region=USA&culture=en_US
A3: start logo
A4: Welcome!
A5: Company News Company Site Premium Log In
A6: end logo start leaderboard ads
A7: end leaderboard ads start main navigation
A8: Membership Home Portfolio Stocks Bonds Funds ETFs CEF Markets Tools Real Life Finance Discuss
A9: start sub navigation
A10: Investing Ideas
A11: Fund Analyst Picks
A12: Picks by Category
A13: Fund Pick Performance
A14: Picks & Pans E-Newsletter
A15: Fund Spy Column
A16: Fund Spy Book
A17: Bond Squad
A18: Fund Video Reports
A19: FundInvestor Newsletter
A20: ETF Investing
A21: Fund Family Experts
A22: Fund Reports
A23: All Fund Analyst Reports
A24: Fund Stewardship Reports
A25: Fund Ratings
A26: Highest-Rated Value
A27: Highest-Rated Growth
A28: Highest-Rated Large-Cap
A29: Highest-Rated Mid-Cap
A30: Highest-Rated Small-Cap
A31: Foreign Fund Standouts
A32: Star Rating Performance
A33: Rating Methodology
A34: Fund Performance
A35: Top 1-Month Performers
A36: Top YTD Performers
A37: Top 1-Year Performers
A38: Top 3-Year Performers
A39: Top 5-Year Performers
A40: Fund Category Returns
A41: Biggest Daily NAV Changes
A42: Closed-End Funds
A43: Exchange-Traded Funds
A44: Quarterly Market Outlook
A45: Fund Screeners
A46: Basic Screeners
A47: Fund Screener
A48: Long-Term Winners
A49: Solid Small-Growth Funds
A50: Conservative Bond Funds
A51: Premium Screeners
A52: Premium Fund Screener
A53: Index Funds
A54: Hidden Gems
A55: Lower-Risk Foreign Funds
A56: Video Center
A57: end sub navigation
A58: end main navigation
A59: end header wrap
A60: Apple Inc
A61: AAPL Morningstar Rating
A62: Add to Portfolio
A63: Get E-mail Alerts
A64: Print This Page
A65: PDF Report
A66: Data Question
A67: Quote
A68: Chart
A69: Stock Analysis
A70: Performance
A71: Key Ratios
A72: Financials
A73: Valuation
A74: Insiders
A75: Ownership
A76: Filings
A77: Bonds
A78: Overview
A79: Company Profile
A80: Industry Peers
A82: start leaderboard ads
A83: end leaderboard ads
A84: Site Directory Site Map Our Products
A85: start site directory
A86: end site directory start site smap
A87: end smapwrap
A88: end site map start products
A89: end prodwrap
A90: end products
A91: end directory start links
A92: Corrections Help Advertising Opportunities Licensing Opportunities Glossary RSS Mobile Portfolio Affiliate Careers
A93: end links start international sites
A94: International Sites: Australia Canada China France Germany Hong Kong Italy The Netherlands Norway Spain U.K. Switzerland
A95: end international sites start copyright, seo
A96: Stocks by: Name | Ticker | Star Rating | Market Cap | Stock Type | Sector | Industry
A97: Mutual Funds by: Star Rating | Investment Style | Total Assets | Category | Top Holdings | Top Sectors | Symbol / Ticker | Name
A98: ETFs by: Star Rating | Category | Total Assets | Symbol / Ticker | Name
A99: Articles by: Title | Date | Author | Collection | Interest | Popularity
A100: Investment Categories by: Topic | Sector | Key Indicators | User Interest | Market Cap | Industry
A101: Premium Stocks by: Name | Ticker | Star Rating | Market Cap | Stock Type | Sector | Industry
A102: Premium Mutual Funds by: Star Rating | Investment Style | Total Assets | Category | Top Holdings | Top Sectors | Symbol / Ticker | Name
A103: Premium ETFs by: Star Rating | Category | Total Assets | Symbol / Ticker | Name
A104: Popular Articles by: Title | Date | Author | Collection | Interest | Popularity
A105: Popular Investment Categories by: Topic | Sector | Key Indicators | User Interest | Market Cap | Industry
A106: Independent. Insightful. Trusted. Morningstar provides stock market analysis; equity, mutual fund, and ETF research, ratings, and picks; portfolio tools; and option, hedge fund, IRA, 401k, and 529 plan research. Our reliable data and analysis can help both experienced enthusiasts and newcomers.
A108: © Copyright Morningstar, Inc. All rights reserved. Please read our Terms of Useand Privacy Policy.Dow Jones Industrial Average, S&P 500, Nasdaq, and Morningstar Index (Market Barometer) quotes are real-time. Russell 2000 quote is 10 minutes delayed.
A109: end copyright, seo
A110: end footerwrap

Sheet Income (hidden)
A1: =Analysis!E2 -> aapl
A2: Zacks Investment Research
A4: Join
A5: Sign In
A6: Member Sign In
A7: Keep Me Signed In What does "Remember Me" do?
A8: Forgot Password
A9: Create a New Account
A11: Home
A12: Stocks Stocks +
A14: Stocks
A15: Zacks #1 Rank
A16: Zacks Rank
A17: Zacks Industry Rank
A18: Zacks Sector Rank
A19: Equity Research
A20: Markets
A22: Funds Funds +
A24: Funds
A25: Mutual Funds
A26: ETFs
A27: Mutual Fund Screener
A28: ETF Screener
A29: Top ETFs
A31: Earnings Earnings +
A33: Earnings
A34: Earnings Calendar
A35: Earnings Releases
A36: Earnings ESP
A37: Earnings ESP Filter
A39: Screening Screening +
A41: Screening
A42: Stock Screener
A43: Mutual Fund Screener
A44: ETF Screener
A45: Premium Screens
A46: Quant Monitor
A47: Research Wizard
A49: Finance Finance +
A51: Personal Finance
A52: Insurance
A53: Investing
A54: Money Managing
A55: Real Estate
A56: Retirement Planning
A57: Tax Information
A59: Portfolio Portfolio +
A61: My Portfolio
A62: Create Portfolio
A64: Education Education +
A66: Education
A67: Stocks
A68: Style Scores
A69: Funds
A70: Earnings ESP
A71: Screening
A72: Video
A73: Testimonial
A75: Services Services +
A78: Services Overview
A79: Zacks Ultimate
A80: Zacks Investor Collection
A81: Zacks Premium
A86: Investor Services
A87: ETF Investor
A88: Home Run Investor
A89: Income Investor
A90: Stocks Under $10
A91: Value Investor
A92: Top 10 Stocks
A96: Other Services
A97: Method for Trading
A98: Research Wizard
A99: Zacks Confidential
A105: Trading Services
A106: Black Box Trader
A107: Counterstrike
A108: Insider Trader
A109: Large-Cap Trader
A110: Momentum Trader
A111: Options Trader
A112: Short List
A113: Surprise Trader
A114: TAZR
A118: Innovators
A119: Blockchain
A120: Healthcare
A121: Technology
A123: Menu
A125: Home
A126: Stocks Stocks +
A128: Stocks
A129: Zacks #1 Rank
A130: Zacks Rank
A131: Zacks Industry Rank
A132: Zacks Sector Rank
A133: Equity Research
A134: Markets
A136: Funds Funds +
A138: Funds
A139: Mutual Funds
A140: ETFs
A141: Mutual Fund Screener
A142: ETF Screener
A143: Top ETFs
A145: Earnings Earnings +
A147: Earnings
A148: Earnings Calendar
A149: Earnings Releases
A150: Earnings ESP
A151: Earnings ESP Filter
A153: Screening Screening +
A155: Screening
A156: Stock Screener
A157: Mutual Fund Screener
A158: ETF Screener
A159: Premium Screens
A160: Quant Monitor
A161: Research Wizard
A163: Finance Finance +
A165: Personal Finance
A166: Insurance
A167: Investing
A168: Money Managing
A169: Real Estate
A170: Retirement Planning
A171: Tax Information
A173: Portfolio Portfolio +
A175: My Portfolio
A176: Create Portfolio
A178: Education Education +
A180: Education
A181: Stocks
A182: Style Scores
A183: Funds
A184: Earnings ESP
A185: Screening
A186: Video
A187: Testimonial
A189: Services Services +
A192: Services Overview
A193: Zacks Ultimate
A194: Zacks Investor Collection
A195: Zacks Premium
A200: Investor Services
A201: ETF Investor
A202: Home Run Investor
A203: Income Investor
A204: Stocks Under $10
A205: Value Investor
A206: Top 10 Stocks
A210: Other Services
A211: Method for Trading
A212: Research Wizard
A213: Zacks Confidential
A219: Trading Services
A220: Black Box Trader
A221: Counterstrike
A222: Insider Trader
A223: Large-Cap Trader
A224: Momentum Trader
A225: Options Trader
A226: Short List
A227: Surprise Trader
A228: TAZR
A232: Innovators
A233: Blockchain
A234: Healthcare
A235: Technology
A237: Join
A239: Sign In
A241: Member Sign In
A242: Keep Me Signed In What does "Remember Me" do?
A243: Forgot Password
A244: Create a New Account
A245: Close this window
A247: Help
A249: Zacks Investment Research
A250: You are being directed to ZacksTrade, a division of LBMZ Securities and licensed broker-dealer. ZacksTrade and Zacks.com are separate companies. The web link between the two companies is not a solicitation or offer to invest in a particular security or type of security. ZacksTrade does not endorse or adopt any particular investment strategy, any analyst opinion/rating/report or any approach to evaluating indiv idual securities.
A251: If you wish to go to ZacksTrade, click OK. If you do not, click Cancel.
A252: OK Cancel
A253: Back to top
A254: more
A255: Financials
A256: Income Statements
A257: close
A259: Quotes & News
A262: Quote Overview
A263: Zacks News
A264: Partner News
A266: Zacks Research
A269: *Snapshot
A270: *Analyst Report
A271: *Style Scores
A272: *Detailed Estimates
A273: Comparison to Industry
A274: Zacks Experts View
A276: More Research
A279: *Broker Recommendations
A280: Full Company Report
... 200 more rows

Sheet Bond rate (hidden)
B1: http://www.bankrate.com/rates/interest-rates/treasury.aspx?ec_id=m1108343&s_kwcid=AL!1325!10!755415317!7018561280&ef_id=VEqRkgAAAagJjRd7:20141024175838:s
A2: Mortgages
A4: Compare Lenders
A7: Mortgage rates
A8: Refinance rates
A9: Home equity loan rates
A10: Mortgage lender reviews
A12: Use Calculators
A15: Mortgage calculator
A16: How much house can you afford?
A17: Mortgage refinance calculator
A18: Mortgage payment calculator
A19: Amortization calculator
A20: All home equity calculators
A21: All mortgage calculators
A23: Get Advice
A26: Reverse mortgages
A27: What is a home equity loan?
A28: Home buying guide
A29: Refinance your mortgage
A30: First-time homebuyer tips
A31: FHA loans
A32: Banking
A34: Compare Accounts
A37: CD rates
A38: Savings accounts
A39: Money market accounts
A40: Checking accounts
A41: Bank ratings
A43: Use Calculators
A46: Savings calculator
A47: CD calculator
A48: Compound savings calculator
A49: All banking calculators
A51: Get Advice
A54: Money market account vs. savings account
A55: Prime rate
A56: Credit union basics
A57: Credit Cards
A59: Compare Cards
A62: 0 interest credit cards
A63: Airline credit cards
A64: Balance transfer credit cards
A65: Business credit cards
A66: Cash-back credit cards
A67: Rewards credit cards
A68: Credit card reviews
A70: Use Calculators
A73: Credit card payoff calculator
A74: Balance transfer calculator
A75: Credit card consolidation calculator
A76: All credit card calculators
A78: Get Advice
A81: Getting a secured credit card
A82: Balance transfer pros and cons
A83: Credit card fraud protection
A84: Manage your credit
A86: Best Offers
A89: Best credit cards of 2018
A90: Best reward cards
A91: Best travel credit cards
A92: Best balance transfer credit cards
A93: Best cash-back credit cards
A94: Best student credit cards
A95: Best business credit cards
A96: Loans
A98: Compare Lenders
A101: Personal loan rates
A102: Auto loan rates
A104: Loan Types
A107: Personal loans
A108: Auto loans
A109: Debt consolidation loans
A110: Home improvement loans
A111: Student loans
A112: Medical loans
A113: Bad credit loans
A115: Use Calculators
A118: Loan calculator
A119: Auto loan calculator
A120: Personal loan calculator
A121: Auto refinance calculator
A122: Loan payment calculator
A123: Student loan calculator
A124: All calculators
A126: Get Advice
A129: Personal loans guide
A130: Student loans guide
A131: Refinancing student loans
A132: Refinancing personal loans
A133: Refinancing auto loans
A134: How to get a personal loan
A135: Personal loan origination fees
A136: Investing
A138: Compare
A141: IRA CD rates
A142: Brokerage accounts
A143: Brokerage reviews
A145: Use Calculators
A148: Investment calculator
A149: Annuity calculator
A150: 401(K) calculator
A151: Roth IRA calculator
A152: All retirement calculators
A153: All investing calculators
A155: Get Advice
A158: Creating passive income
A159: Mutual fund vs. ETF
A160: Roth IRA vs. traditional IRA
A161: What type of CD is best?
A162: IRA basics
A163: Personal Finance
A165: Compare
A168: Current interest rates
A169: Compare rates
A171: Use Calculators
A174: Debt consolidation calculator
A175: Net worth calculator
A176: Personal finance calculators
A177: Cost of living calculator
A178: All calculators
A180: Get Advice
A183: Retirement advice
A184: Debt management
A185: Improve your credit score
A186: Career resources
A187: Tax advice
A188: Insurance basics
A189: Real estate tips
A190: Personal finance glossary
A192: Free credit report
A193: myBankrate
A195: open
A197: 1. Rate watch
A198: 2. Treasury securities
A200: Treasury securities
A202: Investors and those following the movement of interest rates look at the movement of Treasury yields as an indicator of things to come. Their rates are considered an important benchmark: Because Treasury securities are backed by the full faith and credit of the U.S. Treasury, they represent the rate at which investment is considered risk-free.
A204: Click on the links below to find a fuller explanation of the term.
A206: Treasury securities Updated: 07/30/2018
B207: This week | C207: Month ago | D207: Year ago
A208: One-Year Treasury Constant Maturity | B208: 2.43 | C208: 2.34 | D208: 1.22
A209: 91-day T-bill auction avg disc rate | B209: 2 | C209: 1.94 | D209: 1.07
A210: 182-day T-bill auction avg disc rate | B210: 2.16 | C210: 2.09 | D210: 1.13
A211: Two-Year Treasury Constant Maturity | B211: 2.63 | C211: 2.57 | D211: 1.34
A212: Five-Year Treasury Constant Maturity | B212: 2.83 | C212: 2.75 | D212: 1.8
A213: Ten-Year Treasury Constant Maturity | B213: 2.95 | C213: 2.87 | D213: 2.26
A214: One-Year CMT (Monthly) | B214: 2.33 | C214: 2.33 | D214: 1.2
A215: One-Year MTA | B215: 1.75 | C215: 1.75 | D215: 0.83
A217: Ratings methodology
A219: Since investors in riskier investments command a higher return as compensation, the yields on many bonds and money market instruments are priced at a spread over the corresponding risk-free Treasury rate. Yields on money markets and certificates of deposit are often priced relative to yields on Treasuries of a similar length. Adjustable rate mortgages can be indexed to the one-year Treasury. Fixed mortgage rates are closely linked to movements in long-term Treasury yields, as mortgages are often packaged together and sold as mortgage-backed bonds. Yields on short-term Treasuries can behave differently from yields on longer-term Treasuries.
A221: Compare mortgage rates
A223: Fixed Rates
A225: 10 year fixed
A226: 10 year fixed refi
A227: 15 year fixed
A228: 15 year fixed refi
A229: 20 year fixed
A230: 20 year fixed refi
A231: 30 year fixed
A232: 30 year fixed refi
A233: 30 year FHA
A234: 30 year FHA refi
A236: Adjustable Rates
A238: 1 year ARM
A239: 1 year ARM refi
A240: 3/1 ARM
A241: 3/1 ARM refi
A242: 5/1 ARM
A243: 5/1 ARM refi
A244: 7/1 ARM
A245: 7/1 ARM refi
A246: 10/1 ARM
A247: 10/1 ARM refi
A249: Interest Only Rates
A251: 3/1 ARM (IO)
A252: 5/1 ARM (IO) refi
A253: 5/1 ARM (IO)
A254: 7/1 ARM (IO) refi
A255: 7/1 ARM (IO)
A256: 30 year (IO) refi
A257: 30 year fixed (IO)
A258: 3/1 ARM (IO) refi
A260: About Us
A261: Press Room
A262: Affiliate Center
A263: Contact Us
A264: Careers
A266: Advertise With Us
A267: Latest News
A268: Popular Topics
A269: Glossary
A270: Compare Rates
A272: Understand Bankrate's Averages
A273: Privacy Policy / Your California Privacy Rights
A274: Terms of Use
A275: Licenses
A276: Sitemap
A278: How we make money
A280: Bankrate.com is an independent, advertising-supported publisher and comparison service. Bankrate is compensated in exchange for featured placement of sponsored products and services, or your clicking on links posted on this website. This compensation may impact how, where and in what order products appear. Bankrate.com does not include all companies or all available products.
A282: Maximize Your Money. Get Expert Advice & Tools. Master Life's Financial Journey.
... 5 more rows

Sheet 10 Yr PE (hidden)
A2: S&P 500 PE Ratio
A3: Shiller PE Ratio
A4: 10 Year Treasury Rate
A5: S&P 500 Dividend Yield
A6: S&P 500 Earnings
A7: S&P 500 Historical Prices
A8: more
A9: multpl
A11: multpl
A12: menu
A13: S&P 500 PE Ratio by Year
A14: For the Shiller PE10 Ratio, see Shiller PE.
A16: Chart
A17: Table
A18: Share
A20: Show:
A21: By Year
A22: By Month
A24: Date | B24: Value Value
A25: 2017-09-22 | B25: 24.92 estimate
A26: 2017-01-01 | B26: 23.59
A27: 2016-01-01 | B27: 22.18
A28: 2015-01-01 | B28: 20.02
A29: 2014-01-01 | B29: 18.15
A30: 2013-01-01 | B30: 17.03
A31: 2012-01-01 | B31: 14.87
A32: 2011-01-01 | B32: 16.3
A33: 2010-01-01 | B33: 20.7
A34: 2009-01-01 | B34: 70.91
A35: 2008-01-01 | B35: 21.46
A36: 2007-01-01 | B36: 17.36
A37: 2006-01-01 | B37: 18.07
A38: 2005-01-01 | B38: 19.99
A39: 2004-01-01 | B39: 22.73
A40: 2003-01-01 | B40: 31.43
A41: 2002-01-01 | B41: 46.17
A42: 2001-01-01 | B42: 27.55
A43: 2000-01-01 | B43: 29.04
A44: 1999-01-01 | B44: 32.92
A45: 1998-01-01 | B45: 24.29
A46: 1997-01-01 | B46: 19.53
A47: 1996-01-01 | B47: 18.08
A48: 1995-01-01 | B48: 14.89
A49: 1994-01-01 | B49: 21.34
A50: 1993-01-01 | B50: 22.5
A51: 1992-01-01 | B51: 25.93
A52: 1991-01-01 | B52: 15.35
A53: 1990-01-01 | B53: 15.13
A54: 1989-01-01 | B54: 11.82
A55: 1988-01-01 | B55: 14.03
A56: 1987-01-01 | B56: 18.01
A57: 1986-01-01 | B57: 14.28
A58: 1985-01-01 | B58: 10.36
A59: 1984-01-01 | B59: 11.52
A60: 1983-01-01 | B60: 11.48
A61: 1982-01-01 | B61: 7.73
A62: 1981-01-01 | B62: 9.02
A63: 1980-01-01 | B63: 7.39
A64: 1979-01-01 | B64: 7.88
A65: 1978-01-01 | B65: 8.28
A66: 1977-01-01 | B66: 10.41
A67: 1976-01-01 | B67: 11.83
A68: 1975-01-01 | B68: 8.3
A69: 1974-01-01 | B69: 11.68
A70: 1973-01-01 | B70: 18.08
A71: 1972-01-01 | B71: 18
A72: 1971-01-01 | B72: 18.12
A73: 1970-01-01 | B73: 15.76
A74: 1969-01-01 | B74: 17.65
A75: 1968-01-01 | B75: 17.7
A76: 1967-01-01 | B76: 15.3
A77: 1966-01-01 | B77: 17.81
A78: 1965-01-01 | B78: 18.76
A79: 1964-01-01 | B79: 18.78
A80: 1963-01-01 | B80: 17.68
A81: 1962-01-01 | B81: 21.25
A82: 1961-01-01 | B82: 18.6
A83: 1960-01-01 | B83: 17.12
A84: 1959-01-01 | B84: 18.79
A85: 1958-01-01 | B85: 12.5
A86: 1957-01-01 | B86: 13.32
A87: 1956-01-01 | B87: 12.13
A88: 1955-01-01 | B88: 12.58
A89: 1954-01-01 | B89: 10.1
A90: 1953-01-01 | B90: 10.86
A91: 1952-01-01 | B91: 9.95
A92: 1951-01-01 | B92: 7.47
A93: 1950-01-01 | B93: 7.21
A94: 1949-01-01 | B94: 6.62
A95: 1948-01-01 | B95: 9.04
A96: 1947-01-01 | B96: 13.46
A97: 1946-01-01 | B97: 19.17
A98: 1945-01-01 | B98: 14.35
A99: 1944-01-01 | B99: 12.61
A100: 1943-01-01 | B100: 9.7
A101: 1942-01-01 | B101: 7.97
A102: 1941-01-01 | B102: 10.05
A103: 1940-01-01 | B103: 13.23
A104: 1939-01-01 | B104: 18.94
A105: 1938-01-01 | B105: 10.47
A106: 1937-01-01 | B106: 16.75
A107: 1936-01-01 | B107: 17.87
A108: 1935-01-01 | B108: 16.25
A109: 1934-01-01 | B109: 23.95
A110: 1933-01-01 | B110: 17.29
A111: 1932-01-01 | B111: 14.07
A112: 1931-01-01 | B112: 17
A113: 1930-01-01 | B113: 13.92
A114: 1929-01-01 | B114: 17.76
A115: 1928-01-01 | B115: 15.51
A116: 1927-01-01 | B116: 10.89
A117: 1926-01-01 | B117: 10.12
A118: 1925-01-01 | B118: 11.02
A119: 1924-01-01 | B119: 9.01
A120: 1923-01-01 | B120: 12.54
A121: 1922-01-01 | B121: 22.81
A122: 1921-01-01 | B122: 9.36
A123: 1920-01-01 | B123: 9.6
A124: 1919-01-01 | B124: 7.93
A125: 1918-01-01 | B125: 5.72
A126: 1917-01-01 | B126: 6.34
A127: 1916-01-01 | B127: 10.03
A128: 1915-01-01 | B128: 13.6
A129: 1914-01-01 | B129: 13.5
A130: 1913-01-01 | B130: 13.48
A131: 1912-01-01 | B131: 15.2
A132: 1911-01-01 | B132: 12.88
A133: 1910-01-01 | B133: 13.26
A134: 1909-01-01 | B134: 15.1
A135: 1908-01-01 | B135: 10.54
A136: 1907-01-01 | B136: 12.75
A137: 1906-01-01 | B137: 14.51
A138: 1905-01-01 | B138: 16.53
A139: 1904-01-01 | B139: 12.6
A140: 1903-01-01 | B140: 13.65
A141: 1902-01-01 | B141: 15.92
A142: 1901-01-01 | B142: 14.73
A143: 1900-01-01 | B143: 12.71
A144: Jan 1, 1899 | B144: 16.89
A145: Jan 1, 1898 | B145: 15.74
A146: Jan 1, 1897 | B146: 19.18
A147: Jan 1, 1896 | B147: 17.08
A148: Jan 1, 1895 | B148: 25
A149: Jan 1, 1894 | B149: 17.28
A150: Jan 1, 1893 | B150: 15.58
A151: Jan 1, 1892 | B151: 16.21
A152: Jan 1, 1891 | B152: 16.69
A153: Jan 1, 1890 | B153: 17.93
A154: Jan 1, 1889 | B154: 20.15
A155: Jan 1, 1888 | B155: 15.17
A156: Jan 1, 1887 | B156: 16.91
A157: Jan 1, 1886 | B157: 18.57
A158: Jan 1, 1885 | B158: 13.68
A159: Jan 1, 1884 | B159: 13.28
A160: Jan 1, 1883 | B160: 13.51
A161: Jan 1, 1882 | B161: 13.45
A162: Jan 1, 1881 | B162: 12.63
A163: Jan 1, 1880 | B163: 13.1
A164: Jan 1, 1879 | B164: 11.19
A165: Jan 1, 1878 | B165: 10.83
A166: Jan 1, 1877 | B166: 12.68
A167: Jan 1, 1876 | B167: 12.74
A168: Jan 1, 1875 | B168: 10.09
A169: Jan 1, 1874 | B169: 10.13
A170: Jan 1, 1873 | B170: 11.88
A171: Jan 1, 1872 | B171: 12.15
A172: Jan 1, 1871 | B172: 11.1
A174: Price to earnings ratio, based on trailing twelve month “as reported” earnings.
A176: Current PE is estimated from latest reported earnings and current market price.
A178: Source: Robert Shiller and his book Irrational Exuberance for historic S&P 500 PE Ratio.
A180: See also
A182: Shiller PE Ratio
A183: S&P 500 Price to Sales Ratio
A184: S&P 500 Price to Book Value
A185: S&P 500 Earnings Yield
A186: Inflation Adjusted S&P 500
A187: S&P 500 Earnings
A189: Information is provided ‘as is’ and solely for informational purposes, not for trading purposes or advice, and may be delayed.
A191: You should sign up for our mailing list here.
A193: Copyright © 2017
A194: contact@multpl.com

Sheet Price2 (hidden)
A1: =Analysis!E2 -> aapl
A2: Subscribe Now Sign In
A3: The Wall Street Journal
A4: 2018-07-31
A5: Todays Paper
A7: Home
A8: World
A9: U.S.
A10: Politics
A11: Economy
A12: Business
A13: Tech
A14: Markets
A15: Opinion
A16: Life & Arts
A17: Real Estate
A18: WSJ. Magazine
A20: Apple Inc. AAPL (U.S.: Nasdaq)
A21: search | H21: Search
A22: View All companies | H22: view all companies
A24: AT CLOSE 4:00 PM EDT 07/31/18
A25: $190.29 USD
A26: 0.38 0.20%
A27: Volume 30,960,675
A28: AFTER HOURS 5:02 PM EDT 07/31/18
A29: $196.02 5.73 3.01%
A30: AFTER HOURS Vol 4,327,961
A32: Volume 30,960,675
A33: 65 Day Avg Vol 24,325,457
A34: 1 Day Range 189.34 - 192.14
A35: 52 Week Range 149.16 - 195.96 (09/25/17 - 07/26/18)
A37: 1 D
A38: 5 D
A39: 1 M
A40: 3 M
A41: YTD
A42: 1 Y
A43: 3 Y
A45: $
A46: %
A48: Advanced Charting Compare
A50: Compare to Benchmark:
A51: DJIA
A52: S&P 500
A53: GLOBAL DOW
A54: NASDAQ
A55: Technology
A57: Compare to
A58: Add
A59: Open 190.30
A60: Prior Close 189.91 (07/30/18)
A62: 1 Day
A63: AAPL 0.20%
A64: DJIA 0.43%
A65: S&P 500 0.49%
A66: Technology -1.49%
A68: Overview
A70: News Apple Inc.AAPL
A71: Significant News Only
A74: 5 min ago
A75: WSJ Blogs
A76: Apple Drives Stock Market’s Buyback Spree
A77: WSJ Blogs
A79: 21 min ago
A80: Press Release
A81: Apple Reports Third Quarter Results
A82: Press Release
A84: 22 min ago
A85: The Wall Street Journal
A86: Apple’s Revenue, Earnings Top Estimates
A87: The Wall Street Journal
A89: 26 min ago
A90: MarketWatch.com
A91: Apple earnings: Watch these 4 numbers
A92: MarketWatch.com
A94: 3 hours ago
A95: MarketWatch.com
A96: After a decade of wins, the end may be near for one of Wall Street’s best stock trades
A97: MarketWatch.com
A99: 7 hours ago
A100: The Wall Street Journal
A101: A FANG Index Slides Into Correction Territory
A102: The Wall Street Journal
A104: 7 hours ago
A105: The Wall Street Journal
A106: Apple Comes Under Media Fire in China
A107: The Wall Street Journal
A109: 8 hours ago
A110: MarketWatch.com
A111: Apple’s shaping up for a massive earnings beat, strategist predicts
A112: MarketWatch.com
A114: 9 hours ago
A115: MarketWatch.com
A116: Apple earnings: Brace for hints about the next iPhone
A117: MarketWatch.com
A119: 10 hours ago
A120: The Wall Street Journal
A121: Apple Could’ve Been a Trillionaire Long Ago
A122: The Wall Street Journal
A124: 11 hours ago
A125: The Wall Street Journal
A126: Apple Expected to Report Modest iPhone Growth
A127: The Wall Street Journal
A129: 2018-07-30
A130: MarketWatch.com
A131: Fear the FAANG stocks? Here’s a better S&P 500 index fund for you
A132: MarketWatch.com
A134: 2018-07-30
A135: MarketWatch.com
A136: Earnings Watch: Even Apple takes a back seat to Elon Musk right now
A137: MarketWatch.com
A139: 2018-07-28
A140: MarketWatch.com
A141: Weekend roundup: Facebook’s flogging | Amazon’s better news | FAANG stock exposure
A142: MarketWatch.com
A144: 2018-07-28
A145: Barron's
A146: Amazon Leads Tech Rivals in an Era of Shifts
A147: Barron's
A149: 2018-07-28
A150: Barron's
A151: How to Get a Share in a Vintage Car
A152: Barron's
A154: 2018-07-27
A155: Barron's
A156: Look Beyond the FANGs
A157: Barron's
A159: 2018-07-27
A160: MarketWatch.com
A161: These four fund managers and 30 analysts figured out how to consistently beat the S&P 500
A162: MarketWatch.com
A164: 2018-07-27
A165: MarketWatch.com
A166: Here’s a hedge for investors against inflated FAANG stocks
A167: MarketWatch.com
A169: 2018-07-26
A170: The Wall Street Journal
A171: Facebook Leads Tech-Share Decline
A172: The Wall Street Journal
A174: 2018-07-26
A175: MarketWatch.com
A176: Wall Street veteran who flagged Apple at $1.14 a share says these 5 overlooked stocks are buys
A177: MarketWatch.com
A179: 2018-07-25
A180: Press Release
A181: Thinking about buying stock in Apple, Advanced Micro Devices, Fitbit, GoPro or Netflix?
A182: Press Release
A184: 2018-07-25
A185: Press Release
A186: Self-Driving and Electric Vehicles are Combining to Make the Cars of the Future
A187: Press Release
A189: 2018-07-24
A190: Press Release
A191: Apple Piazza Liberty Opens Thursday in Milan
A192: Press Release
A194: 2018-07-23
A195: Press Release
A196: Thinking about buying stock in Apple, General Electric, Hasbro, ReWalk Robotics, or Tesla?
A197: Press Release
A199: 2018-07-13
A200: Press Release
A201: Apple Supports Malala Fund Expansion in Latin America
A202: Press Release
A204: 2018-07-12
A205: Press Release
A206: Apple Launches New Clean Energy Fund in China
A207: Press Release
A209: 2018-07-12
A210: Press Release
A211: Apple Updates MacBook Pro with Faster Performance and New Features for Pros
A212: Press Release
A214: 2018-07-11
A215: Press Release
A216: Should you buy stock in Apple, Salesforce, Facebook, Netflix or NVIDIA?
A217: Press Release
A219: 2018-07-09
A220: Press Release
A221: Thinking about buying stock in Apple, Black Box Corporation, Helen of Troy Limited, Neovasc Inc. or Twitter?
A222: Press Release
A224: 2018-07-05
A225: Press Release
A226: Should you buy stock in Apple, Barnes & Noble, Facebook, Fiat Chrysler Auto or Netflix?
A227: Press Release
A229: 2018-06-28
A230: Press Release
A231: Should you buy stock in Apple, Advanced Micro Devices, Netflix, Neovasc Inc. or Energous?
A232: Press Release
A234: 2018-06-28
A235: Press Release
A236: The Fastest Growing Smartphone Market in the World
A237: Press Release
A239: 2018-06-25
A240: Press Release
A241: Apple News Launches 2018 Midterm Elections Section
A242: Press Release
A244: 2018-06-19
A245: Press Release
A246: Increasing Global Purchasing Power is Leading to Electronics-market Boom
A247: Press Release
A249: 2018-06-18
... 246 more rows

Sheet CFlow (hidden)
A1: =Analysis!E2 -> aapl
A2: Zacks Investment Research
A4: Join
A5: Sign In
A6: Member Sign In
A7: Keep Me Signed In What does "Remember Me" do?
A8: Forgot Password
A9: Create a New Account
A11: Home
A12: Stocks Stocks +
A14: Stocks
A15: Zacks #1 Rank
A16: Zacks Rank
A17: Zacks Industry Rank
A18: Zacks Sector Rank
A19: Equity Research
A20: Markets
A22: Funds Funds +
A24: Funds
A25: Mutual Funds
A26: ETFs
A27: Mutual Fund Screener
A28: ETF Screener
A29: Top ETFs
A31: Earnings Earnings +
A33: Earnings
A34: Earnings Calendar
A35: Earnings Releases
A36: Earnings ESP
A37: Earnings ESP Filter
A39: Screening Screening +
A41: Screening
A42: Stock Screener
A43: Mutual Fund Screener
A44: ETF Screener
A45: Premium Screens
A46: Quant Monitor
A47: Research Wizard
A49: Finance Finance +
A51: Personal Finance
A52: Insurance
A53: Investing
A54: Money Managing
A55: Real Estate
A56: Retirement Planning
A57: Tax Information
A59: Portfolio Portfolio +
A61: My Portfolio
A62: Create Portfolio
A64: Education Education +
A66: Education
A67: Stocks
A68: Style Scores
A69: Funds
A70: Earnings ESP
A71: Screening
A72: Video
A73: Testimonial
A75: Services Services +
A78: Services Overview
A79: Zacks Ultimate
A80: Zacks Investor Collection
A81: Zacks Premium
A86: Investor Services
A87: ETF Investor
A88: Home Run Investor
A89: Income Investor
A90: Stocks Under $10
A91: Value Investor
A92: Top 10 Stocks
A96: Other Services
A97: Method for Trading
A98: Research Wizard
A99: Zacks Confidential
A105: Trading Services
A106: Black Box Trader
A107: Counterstrike
A108: Insider Trader
A109: Large-Cap Trader
A110: Momentum Trader
A111: Options Trader
A112: Short List
A113: Surprise Trader
A114: TAZR
A118: Innovators
A119: Blockchain
A120: Healthcare
A121: Technology
A123: Menu
A125: Home
A126: Stocks Stocks +
A128: Stocks
A129: Zacks #1 Rank
A130: Zacks Rank
A131: Zacks Industry Rank
A132: Zacks Sector Rank
A133: Equity Research
A134: Markets
A136: Funds Funds +
A138: Funds
A139: Mutual Funds
A140: ETFs
A141: Mutual Fund Screener
A142: ETF Screener
A143: Top ETFs
A145: Earnings Earnings +
A147: Earnings
A148: Earnings Calendar
A149: Earnings Releases
A150: Earnings ESP
A151: Earnings ESP Filter
A153: Screening Screening +
A155: Screening
A156: Stock Screener
A157: Mutual Fund Screener
A158: ETF Screener
A159: Premium Screens
A160: Quant Monitor
A161: Research Wizard
A163: Finance Finance +
A165: Personal Finance
A166: Insurance
A167: Investing
A168: Money Managing
A169: Real Estate
A170: Retirement Planning
A171: Tax Information
A173: Portfolio Portfolio +
A175: My Portfolio
A176: Create Portfolio
A178: Education Education +
A180: Education
A181: Stocks
A182: Style Scores
A183: Funds
A184: Earnings ESP
A185: Screening
A186: Video
A187: Testimonial
A189: Services Services +
A192: Services Overview
A193: Zacks Ultimate
A194: Zacks Investor Collection
A195: Zacks Premium
A200: Investor Services
A201: ETF Investor
A202: Home Run Investor
A203: Income Investor
A204: Stocks Under $10
A205: Value Investor
A206: Top 10 Stocks
A210: Other Services
A211: Method for Trading
A212: Research Wizard
A213: Zacks Confidential
A219: Trading Services
A220: Black Box Trader
A221: Counterstrike
A222: Insider Trader
A223: Large-Cap Trader
A224: Momentum Trader
A225: Options Trader
A226: Short List
A227: Surprise Trader
A228: TAZR
A232: Innovators
A233: Blockchain
A234: Healthcare
A235: Technology
A237: Join
A239: Sign In
A241: Member Sign In
A242: Keep Me Signed In What does "Remember Me" do?
A243: Forgot Password
A244: Create a New Account
A245: Close this window
A247: Help
A249: Zacks Investment Research
A250: You are being directed to ZacksTrade, a division of LBMZ Securities and licensed broker-dealer. ZacksTrade and Zacks.com are separate companies. The web link between the two companies is not a solicitation or offer to invest in a particular security or type of security. ZacksTrade does not endorse or adopt any particular investment strategy, any analyst opinion/rating/report or any approach to evaluating indiv idual securities.
A251: If you wish to go to ZacksTrade, click OK. If you do not, click Cancel.
A252: OK Cancel
A253: Back to top
A254: more
A255: Financials
A256: Cash flow Statements
A257: close
A259: Quotes & News
A262: Quote Overview
A263: Zacks News
A264: Partner News
A266: Zacks Research
A269: *Snapshot
A270: *Analyst Report
A271: *Style Scores
A272: *Detailed Estimates
A273: Comparison to Industry
A274: Zacks Experts View
A276: More Research
A279: *Broker Recommendations
A280: Full Company Report
... 181 more rows

Sheet G-1
G16: Return to Analysis Summary
A18: If Receivables is going up, customers aren't paying their bills. But if Revenue is also going up Receivables will likely go up also--and Inventories as well. If either goes up faster than Revenues however, that's a danger signal. All three are expected to more or less act in concert.
A36: Expect Sales to increase at or above the growth in Cost of Sales. Also, if Property, Plant & Equipment (PP&E) is increasing Revenues should also increase. PP&E might trail Revenues a year or two if the money is being spent on new buildings, etc.--large projects. Allow for completion time.

Sheet G-1a
G16: Return to Analysis Summary
A18: Days waiting for payment is an indication of how loose the company is allowing credit terms to customers to become when paying for product purchases. An upward slope is not desired--unless Sales are also increasing at approximately the same rate. Compare the graphs below, both annual and quarterly, to discern those trends. The number of days waiting is industry sensitive. It's wise to compare companies with their competitors to determine how well your company is doing.
A19: The annual data is a long-term look, which isn't as important as the quarterly data. On the quarterly graph, compare the number of days waiting in the most recent quarter to the year ago quarter--i.e. compare the right side to the left side of the plotted data. An increase of 3 or more days is considered a warning sign the company is loosening credit standards and allowing customers to take longer to pay for product. However, if Sales are increasing at about the same rate (slope on the Sales graph below), a slight upward trend is not considered too serious. Also, an acquision can cause the days waiting to increase.
G35: Return to Analysis Summary

Sheet G-2
A15: =IF(InventoriesThisYear=0,"This company has not reported any Inventories","") -> 
A16: A ratio showing how many times a company's inventory is sold and replaced each period. The higher the ratio the better. It indicates quality merchandise & proper pricing.
F18: Return to Analysis Summary
A20: The graph to the right indicates the number of days waiting for customers to pay for sold merchandise, and how long inventory is sitting on the shelf unsold. Less than 60 days is good and less than 45 days is suburb. Look for any change in the upward direction of either or both data, indicating a problem with the product or pricing.

Sheet G-2a
A15: Comparing Revenues with Total Assets indicates how well management is utilizing the assets of the company to turn them into sales. Watch the relationship between the two values. If Total Assets is growing faster than Revenues it may signal that management is taking on more debt. Check the debt--see Graph 3a.
F17: Return to Analysis Summary

Sheet G-3
A16: If PP&E is increasing markedly it may cause Free Cash Flow to decrease--even to the point of causing it to become negative. The question to ask is: What is the company spending it's cash on and will that expenditure likely result in increasing market share and sales?
A17: Also compare PP&E with Capital Expenditures as a Percentage of Sales--see the graphic below.
F19: Return to Analysis Summary
I22: Capital expenditures are generally not meaningful on a quarterly basis as it takes time for those types of expenditures to result in increased sales and profitablility. Therefore no graphing of quarterly data is shown here.
A33: Cash flow per share should be greater than Capital Expenditures plus Dividends per share. If Cash Flow is less than capital spending it's a RED FLAG.

Sheet G-3a
E15: Total Interest Coverage is: | H15: =Analysis!F27 -> 20.35739097 | I15: =IF(LTDebtThisYEar=0,"This company has no Long-term Debt","") -> This company has no Long-term Debt
A16: If Long Term Debt is increasing, what is management doing with the money to increase the growth of the company? Can the company borrow at a rate less than the Return on Equity? If not, it's a double whammy to borrow. If the Total Interest Coverage is less than 5, worry. If less than 3, consider a sell. Large Total Interest Coverage numbers don't mean too much. It's the small number you want to pay attention to.
F20: Return to Analysis Summary

Sheet G-4
G16: Return to Analysis Summary
A18: Gross Margin is a company's total revenue, minus cost of goods sold divided by the total sales revenue, expressed as a percentage. The gross margin represents the percent of total sales revenue that the company retains after incurring the direct costs associated with producing the goods and services sold by a company. The higher the percentage, the more the company retains on each dollar of sales to service its other costs and obligations. | I18: Quarterly data provides a more timely look at the same data. Declining Margins are particularly troubling and can be an indicator of future problems. Compare the Margins of this company with its peers and the market in general.
A19: It's the relationship between Revenues and the Cost of Revenues. Stability and an increasing value is an indication of good management--an indication of efficient use of facilities and labor.
A21: The operating profit margin shows how successful a company’s management has been in generating income from the operation of its core business. Net income is the money that's left over after all other expenses have been paid. It indicates how effectively management runs the company.
A22: Operating Income / Sales
A24: Net Profit Margin indicates how much profit a company makes on each dollar it generates in Revenues; again, a measurement of management..
A26: What to look for: To get a better picture when looking at margins, always compare a company to its peers and industry average. (The Analysis section of this form shows year over year short term comparisons in the "Competitors" area as well as competing companies.)

Sheet G-5 (hidden)
A15: Is there sufficient Cash Flow to pay the Dividend if one is paid? If Cash Flow from Operations drops to a value close to or below the Dividends paid, the Dividend is in danger of being cut. The chart is showing Annual data, which is a broad look at the data. Quarterly data is not available for comparison. | I15: The Quarterly Gross Margin reveals the profitability of a company. The numerical value is important if used to compare companies in the same industry only. The trend, however, is comparable regardless of the industry. A decreasing trend can be a warning of profitability problems at the present, as well as in the future. Why is it decreasing?
A17: =IF(Data!M55=0,"No Dividend is currently paid by this company, therefore no comparison can be made.","") -> No Dividend is currently paid by this company, therefore no comparison can be made.
F18: Return to Analysis Summary

Sheet G-5a
A15: How well is management utilizing the assets--turning the assets into sales? Is there consistency? Compare the results with other companies to determine if any problem is with the company, industry, or market.
G18: Return to Analysis Summary

Sheet G-6
A16: Return on Assets (ROA) and Return on Capital (ROC) are arguably better indicators of the profitability of a company, compared to Return on Equity (ROE). Both ROA and ROC include long term debt in the equation and ROE does not. Thus, ROA and ROC provide a more true picture. Debt increases ROE. How? -- The use of debt lowers equity, and if equity is lowered more than net income, ROE will increase. On the other hand, ROA and ROC are lowered by debt--the interest expense lowers net income, which lowers ROA and ROC.
A17: ROE indicates how well the management is doing with the money it has now. ROA and ROC indicate how well management is likely to do in the future with capital.
A18: Both ROA and ROC can be used an the Implied Growth Rate--a realistic growth rate expected in the next few years. Normally ROA is a little more conservative as a projected growth rate.
A20: Watch the relationship between ROE, ROA and ROC, and debt. | J20: Return to Analysis Summary
E38: Return to Analysis Summary

Sheet G-6a
A15: The comparison of these two data are very important and revealing.
A16: If Cash from Operations is declining or falls faster than Net Cashflow Income, it's a very serious situation. The company will need to raise capital to stay in business--through borrowing or issuing new shares. If Net Cash from Operations becomes negative, it means the company is spending it's cash to stay in business.
A17: Look at the Cashflow statement under Operating Activities to see what the company is using it's money for. Look at Inventories and Receivables; if rising, products may not be properly priced or being returned by customers. See Graph-1
F19: Return to Analysis Summary

Sheet G-7 (hidden)
A15: The higher the number the better, but watch the trend also. This rating is most useful when compared to other companies, particularly those in the same industry.
F17: Return to Analysis Summary

Sheet G-7a
A15: The higher the number the better, but watch the trend also. This rating is most useful when compared to other companies, particularly those in the same industry.
F17: Return to Analysis Summary

Sheet G-8
A16: Use extreme caution when Net Income exceeds Operating Cash Flow.
F18: Return to Analysis Summary

Sheet G-9
D15: =IF(InventoriesThisYear=0,"This company has no Inventories, therefore Quick Ratio and Current Ratio values are the same","") -> 
A16: Current Ratio is also known as the "Liquidity Ratio". The ratio is mainly used to give an idea of the company's ability to pay back its short-term liabilities (debt and payables) with its short-term assets (cash, inventory, receivables). The higher the current ratio, the more capable the company is of paying its obligations. A ratio under 1 suggests that the company would be unable to pay off its obligations if they came due at that point. If decreasing, the companie's financial position is weakening.
A17: Quick Ratio is also known as the "acid-test ratio". It is an indicator of a company's short-term liquidity. The quick ratio measures a company's ability to meet its short-term obligations with its most liquid assets. The higher the quick ratio, the better the position of the company.
A18: The quick ratio is more conservative than the current ratio because it excludes inventory from current assets. Inventory is excluded because some companies have difficulty turning their inventory into cash. In the event that short-term obligations need to be paid off immediately, there are situations in which the current ratio would overestimate a company's short-term financial strength. If decreasing, the companie's financial position is weakening.
A19: NOTE: Ratios are more meaningful if compared to other companies in the same industry.
F22: Return to Analysis Summary
